Transaction Reference,Supplier Name,Line Value,Department,Category,Transaction Date,Year/Period,SME,Costs split between Babergh and Mid Suffolk District Councils Y/N,% of transaction apportioned to Mid Suffolk District Council
10039741,ACADEMY BUILDING CONTRACTS LTD,654.52,Building Services,Repairs,01-Apr-21,2122/01,SME,N,
10040029,ACADEMY BUILDING CONTRACTS LTD,"2,513.48",Building Services,Repairs,23-Apr-21,2122/01,SME,N,
10040030,ACADEMY BUILDING CONTRACTS LTD,561.52,Building Services,Repairs,23-Apr-21,2122/01,SME,N,
10039867,AE WHITE SURFACING,"3,945.00",Insurance Claims,Misc Premises Costs,31-Mar-21,2122/01,SME,N,
10039698,ALLPAY LTD,294.2,Financial Servs,Contracted Services,31-Mar-21,2122/01,LGE,N,
10039703,ALLPAY LTD,266.51,Financial Servs,Contracted Services,31-Mar-21,2122/01,LGE,N,
10039658,ANGLIAN WATER,"11,239.02",Sheltered Accommodation,Water Rates - Metered,12-Nov-20,2122/01,LGE,N,
10039648,ARAN SERVICES LTD,970.85,Dampness & Condensation,Repairs,26-Mar-21,2122/01,SME,N,
10039735,ARAN SERVICES LTD,550,R&M General (Mgmt),Contracted Services,31-Mar-21,2122/01,SME,N,
10039736,ARAN SERVICES LTD,550,R&M General (Mgmt),Contracted Services,31-Mar-21,2122/01,SME,N,
10040061,ARLINGCLOSE LTD,"1,950.00",Treasury Management,Contracted Services,27-Apr-21,2122/01,SME,N,
10039529,BIFFA AWARD - THE WILDLIFE TRUST,"6,972.15",Comm Devt Grants,Grants,25-Mar-21,2122/01,SME,N,
10039820,BINDER LTD,299.76,Sewage Treatment Works,Contracted Services,30-Mar-21,2122/01,SME,N,
10039821,BINDER LTD,299.76,Sewage Treatment Works,Contracted Services,31-Mar-21,2122/01,SME,N,
10039686,BLUE FLAME (COLCHESTER) LTD,"24,381.47",Planned Maint - Heating,Property Servicing,31-Mar-21,2122/01,SME,N,
20027127,BLUE FLAME (COLCHESTER) LTD,"3,662.12",Current Liabilities,Cert IBS Creditors Holding ac,07-Apr-21,2122/01,SME,N,
20027234,BLUE FLAME (COLCHESTER) LTD,"4,079.70",Current Liabilities,Cert IBS Creditors Holding ac,14-Apr-21,2122/01,SME,N,
20027239,BLUE FLAME (COLCHESTER) LTD,"65,595.03",Current Liabilities,Cert IBS Creditors Holding ac,21-Apr-21,2122/01,SME,N,
20027252,BLUE FLAME (COLCHESTER) LTD,"38,473.88",Current Liabilities,Cert IBS Creditors Holding ac,29-Apr-21,2122/01,SME,N,
10039727,BOTTOMLINE TECHNOLOGIES,639.65,ICT,Software Licnse (Line of Bus) ,31-Mar-21,2122/01,LGE,Y,50%
10038771,BOWER FULLER,"3,870.60",Tenancy Services,Fire Prevention,31-Jan-21,2122/01,SME,N,
10038776,BOWER FULLER,"2,563.20",Sheltered Accommodation,Fire Prevention,31-Jan-21,2122/01,SME,N,
10039810,CLARKES OF WALSHAM LTD,300,Building Services,Repairs,09-Apr-21,2122/01,SME,N,
10039561,D W ADAMS LTD,"4,317.00",Building Services,Repairs,26-Mar-21,2122/01,SME,N,
10039885,D W ADAMS LTD,"16,639.35",Council House Adaptions,Improvements,29-Mar-21,2122/01,SME,N,
10039906,D W ADAMS LTD,530,Building Services,Repairs,15-Apr-21,2122/01,SME,N,
10040019,DISTRICT COUNCILS' NETWORK,"1,380.00",Management Team,Subscriptions,21-Apr-21,2122/01,LGE,N,
10039952,DOLPHIN STAIRLIFTS (EAST ANGLIA) LTD,415,Mand Disabled Facilities Grant,Grants,19-Apr-21,2122/01,SME,N,
10039687,EAST SUFFOLK INTERNAL DRAINAGE BOARD,"1,806.00",Land Drainage,Misc Supplies & Services Costs,06-Apr-21,2122/01,SME,N,
10039900,ENGLISH SECURITY,"2,329.08",Council House Adaptions,Improvements,30-Mar-21,2122/01,SME,N,
10039901,ENGLISH SECURITY,968.01,Tenancy Services,Emergency Lighting,30-Mar-21,2122/01,SME,N,
10040025,ENGLISH SECURITY,351.18,Sheltered Accommodation,Fire Prevention,21-Apr-21,2122/01,SME,N,
10039879,ENVIRONMENT AGENCY,890,Sewage Treatment Works,Water Rates - Other Charges,01-Apr-21,2122/01,LGE,N,
10039880,ENVIRONMENT AGENCY,"4,250.00",Sewage Treatment Works,Water Rates - Other Charges,01-Apr-21,2122/01,LGE,N,
10039937,FELLBRIDGE BUILDING SERVICES,459.96,Building Services,Repairs,19-Apr-21,2122/01,SME,N,
10039997,FELLBRIDGE BUILDING SERVICES,"1,179.47",Building Services,Repairs,22-Apr-21,2122/01,SME,N,
10039679,FORE-MOST GARAGE DOORS LTD,"2,311.06",Building Services,Repairs,31-Mar-21,2122/01,SME,N,
10039979,G4S CASH SOLUTIONS LTD,458.86,Financial Servs,Contracted Services,02-Feb-21,2122/01,LGE,N,
10039916,KENDA-CLEAN,14,Chilton Depot,Window Cleaning,14-Apr-21,2122/01,SME,Y,50%
10039916,KENDA-CLEAN,954,Sheltered Accommodation,Window Cleaning,14-Apr-21,2122/01,SME,N,
10039916,KENDA-CLEAN,93,Temporary Accommodation,Window Cleaning,14-Apr-21,2122/01,SME,N,
10039916,KENDA-CLEAN,431,Tenancy Services,Window Cleaning,14-Apr-21,2122/01,SME,N,
10039831,KINGSLEY HOUSE HOTEL,525,Homelessness Private Sector,B&B Costs,11-Apr-21,2122/01,SME,N,
10039832,KINGSLEY HOUSE HOTEL,432,Homelessness Private Sector,B&B Costs,11-Apr-21,2122/01,SME,N,
10039833,KINGSLEY HOUSE HOTEL,900,Homelessness Private Sector,B&B Costs,11-Apr-21,2122/01,SME,N,
10039764,M & H CIVIL ENGINEERING LTD,350,Building Services,Repairs,23-Mar-21,2122/01,SME,N,
10039876,MATERIAL CHANGE COMPOSTING LTD,904.27,Street & Major Road Cleansing,Waste Disposal,31-Mar-21,2122/01,LGE,N,
10039825,MERCURY BUILDING SERVICES LTD,260,Kingfisher Leisure Centre,Repairs,09-Apr-21,2122/01,SME,N,
10039825,MERCURY BUILDING SERVICES LTD,540,Hadleigh Pool,Misc Premises Costs,09-Apr-21,2122/01,SME,N,
10040073,MONTHIND CLEAN LTD,624.43,Jnt Waste Contract,General Cleaning,15-Apr-21,2122/01,LGE,Y,50%
10039935,ORWELL HOUSING ASSOCIATION LTD,524.56,Sheltered Accommodation,Contracted Services,28-Feb-21,2122/01,LGE,N,
10039883,PITMAN BROTHERS (DECORATORS) LTD,"1,105.25",Sheltered Units-Gen.Imp,Improvements,13-Apr-21,2122/01,SME,N,
10039984,PRO-FLAT SPECIALIST SERVICES LTD,"2,882.00",Building Services,Repairs,20-Apr-21,2122/01,SME,N,
10039682,REID PLUMBING & HEATING CONTRACTORS LTD,"3,825.86",Central Heating,Major Contracts,06-Apr-21,2122/01,SME,N,
10039928,REID PLUMBING & HEATING CONTRACTORS LTD,"8,622.98",Central Heating,Major Contracts,14-Apr-21,2122/01,SME,N,
10039983,REID PLUMBING & HEATING CONTRACTORS LTD,"8,934.51",Central Heating,Major Contracts,21-Apr-21,2122/01,SME,N,
10039712,SEAGER HOME SOLUTIONS,"4,489.09",Building Services,Repairs,30-Mar-21,2122/01,SME,N,
10039922,SEAGER HOME SOLUTIONS,"2,025.56",Building Services,Repairs,15-Apr-21,2122/01,SME,N,
10040052,SSI SCHAEFER LTD,"40,186.80",Bins,Bins,26-Apr-21,2122/01,SME,Y,50%
10040058,STEVEN R.POTKINS LTD,950,Mand Disabled Facilities Grant,Grants,19-Apr-21,2122/01,SME,N,
10039811,SUDBURY OFFICE SUPPLIES,486.74,General Elections,Stationery,01-Apr-21,2122/01,SME,Y,50%
10039994,SUFFOLK TREE SERVICES LTD,480,Public Tree Programme,Tree felling/maintenance,22-Apr-21,2122/01,SME,N,
10039543,SUREFIX,"1,720.00",Building Services,Repairs,24-Mar-21,2122/01,SME,N,
10039728,SUREFIX,258.81,Responsive maintenance,Repairs,22-Sep-20,2122/01,SME,N,
10039729,SUREFIX,800,Building Services,Repairs,26-Mar-21,2122/01,SME,N,
10039732,SUREFIX,750,Building Services,Repairs,01-Apr-21,2122/01,SME,N,
10039780,SUREFIX,"1,800.00",Building Services,Repairs,08-Apr-21,2122/01,SME,N,
10039845,SUREFIX,900,Building Services,Repairs,31-Mar-21,2122/01,SME,N,
10039917,SUREFIX,"1,371.24",Building Services,Repairs,15-Apr-21,2122/01,SME,N,
10040004,SUREFIX,750,Building Services,Repairs,09-Apr-21,2122/01,SME,N,
10040010,SUREFIX,527.4,Building Services,Repairs,20-Apr-21,2122/01,SME,N,
10040012,SUREFIX,843.84,Building Services,Repairs,19-Apr-21,2122/01,SME,N,
10039672,TANKCHANGE LTD,"2,145.00",Central Heating,Improvements,31-Mar-21,2122/01,SME,N,
10039673,TANKCHANGE LTD,"2,045.00",Central Heating,Improvements,31-Mar-21,2122/01,SME,N,
10039674,TANKCHANGE LTD,"2,095.00",Central Heating,Improvements,31-Mar-21,2122/01,SME,N,
10039861,TDT ENTERPRISES LTD,293,Sheltered Accommodation,Repairs,13-Apr-21,2122/01,SME,N,
10039852,THERMATECH,"1,238.80",Sheltered Accommodation,Fire Prevention,12-Apr-21,2122/01,SME,N,
10039853,THERMATECH,"1,002.00",Sheltered Accommodation,Fire Prevention,12-Apr-21,2122/01,SME,N,
10039854,THERMATECH,"1,060.00",Sheltered Accommodation,Fire Prevention,12-Apr-21,2122/01,SME,N,
10039647,TREADFIRST TYRE & EXHAUST LIMITED,450,Taxi & Private Hire Licensing,Prof & Consultancy Fees,30-Mar-21,2122/01,SME,N,
10039064,VALUATION OFFICE AGENCY,985,Devt Management -Applications,Prof & Consultancy Fees,03-Mar-21,2122/01,LGE,N,
10039986,VODAFONE CORPORATE LTD,465,ICT,Telephone Costs,21-Apr-21,2122/01,LGE,N,
10040016,WINDIMAN LTD,735,Building Services,Repairs,22-Apr-21,2122/01,SME,N,
10039497,ARCHANT COMMUNITY MEDIA LTD,735.42,Devt Management -Applications,Advertising&mkting (non-staff),20-Mar-21,2122/01,LGE,N,
10039697,ARCHANT COMMUNITY MEDIA LTD,656.62,Devt Management -Applications,Advertising&mkting (non-staff),31-Mar-21,2122/01,LGE,N,
10039849,ARCHANT COMMUNITY MEDIA LTD,709.15,Devt Management -Applications,Advertising&mkting (non-staff),10-Apr-21,2122/01,LGE,N,
10039968,ARCHANT COMMUNITY MEDIA LTD,577.83,Devt Management -Applications,Advertising&mkting (non-staff),17-Apr-21,2122/01,LGE,N,
10040043,ARCHANT COMMUNITY MEDIA LTD,761.68,Devt Management -Applications,Advertising&mkting (non-staff),24-Apr-21,2122/01,LGE,N,
10039982,NEWAUTO LTD T/A MOGO UK,"2,389.90",Taxi & Private Hire Licensing,Signs,21-Apr-21,2122/01,SME,N,
10039771,ESSEX COUNTY COUNCIL,"5,000.00",Management Team,Subscriptions,31-Mar-21,2122/01,LGE,N,
10039772,ESSEX COUNTY COUNCIL,504,Pre App Charging,Ecology Consultancy,25-Mar-21,2122/01,LGE,N,
10039774,ESSEX COUNTY COUNCIL,"7,044.00",Devt Management -Applications,Ecology Consultancy,25-Mar-21,2122/01,LGE,N,
10039775,ESSEX COUNTY COUNCIL,"6,479.00",Devt Management -Applications,Ecology Consultancy,24-Mar-21,2122/01,LGE,N,
10039481,NPS PROPERTY CONSULTANTS LTD,"7,440.00",Conversions & Adaptations,Prof & Consultancy Fees,23-Mar-21,2122/01,LGE,N,
10039841,IPSWICH BOROUGH COUNCIL,"1,766.49",Central Printing,Commercial Printing,09-Apr-21,2122/01,LGE,Y,50%
20027248,EDF ENERGY,108.88,Belle Vue House,Electricity,08-Apr-21,2122/01,LGE,N,
20027248,EDF ENERGY,940.72,C Parks General,Electricity,08-Apr-21,2122/01,LGE,N,
20027248,EDF ENERGY,2.81,Calais St Depot,Electricity,08-Apr-21,2122/01,LGE,N,
20027248,EDF ENERGY,518.64,Chilton Depot,Electricity,08-Apr-21,2122/01,LGE,Y,50%
20027248,EDF ENERGY,-389.53,Climate Change and Sustainabil,Electricity,08-Apr-21,2122/01,LGE,N,
20027248,EDF ENERGY,58.14,Community Safety-CCTV,Electricity,08-Apr-21,2122/01,LGE,N,
20027248,EDF ENERGY,10.09,Hadl Market,Electricity,08-Apr-21,2122/01,LGE,N,
20027248,EDF ENERGY,10.66,Headquarters General,Electricity,08-Apr-21,2122/01,LGE,N,
20027248,EDF ENERGY,"1,184.03",HQ Energy,Electricity,08-Apr-21,2122/01,LGE,N,
20027248,EDF ENERGY,799.01,Public Conveniences,Electricity,08-Apr-21,2122/01,LGE,N,
20027248,EDF ENERGY,98.02,Sewage Treatment Works,Electricity,08-Apr-21,2122/01,LGE,N,
20027248,EDF ENERGY,"4,318.83",Sheltered Accommodation,Electricity,08-Apr-21,2122/01,LGE,N,
20027248,EDF ENERGY,168.33,SP Comm Alarms (Non-SH),Electricity,08-Apr-21,2122/01,LGE,N,
20027248,EDF ENERGY,367.12,Temporary Accommodation,Electricity,08-Apr-21,2122/01,LGE,N,
20027248,EDF ENERGY,"4,995.35",Tenancy Services,Electricity,08-Apr-21,2122/01,LGE,N,0.25%
20027248,EDF ENERGY,2.54,Wenham Depot,Electricity,08-Apr-21,2122/01,LGE,Y,50%
20027238,GPC BARCLAYS,"6,021.92",Current Assets,Barclaycard Control,16-Apr-21,2122/01,LGE,Y,38%
10039656,STANNAH STAIRLIFTS LTD,"2,604.00",Council House Adaptions,Improvements,08-Feb-21,2122/01,LGE,N,
20027246,COMPUTERSHARE ,923,Current Assets,ChildCare Vouchers-Control,23-Apr-21,2122/01,LGE,N,
20027128,ACTON PARISH COUNCIL,"27,588.66",CIL,Contributions to other Bodies,07-Apr-21,2122/01,SME,N,
20027129,ALPHETON PARISH COUNCIL,"6,664.11",CIL,Contributions to other Bodies,07-Apr-21,2122/01,SME,N,
20027130,ASSINGTON PARISH COUNCIL,"12,685.60",CIL,Contributions to other Bodies,07-Apr-21,2122/01,SME,N,
20027131,BENTLEY PARISH COUNCIL,"1,664.87",CIL,Contributions to other Bodies,07-Apr-21,2122/01,SME,N,
20027132,BRETTENHAM PARISH COUNCIL,"6,463.12",CIL,Contributions to other Bodies,07-Apr-21,2122/01,SME,N,
20027133,CAPEL ST MARY PARISH COUNCIL,"6,148.02",CIL,Contributions to other Bodies,07-Apr-21,2122/01,SME,N,
20027141,CHATTISHAM & HINTLESHAM PARISH COUNCIL,"12,053.11",CIL,Contributions to other Bodies,07-Apr-21,2122/01,SME,N,
20027134,COCKFIELD PARISH COUNCIL,"13,013.22",CIL,Contributions to other Bodies,07-Apr-21,2122/01,SME,N,
20027135,ELMSETT PARISH COUNCIL,"3,747.99",CIL,Contributions to other Bodies,07-Apr-21,2122/01,SME,N,
20027136,GLEMSFORD PARISH COUNCIL,"2,606.92",CIL,Contributions to other Bodies,07-Apr-21,2122/01,SME,N,
20027137,GREAT CORNARD PARISH COUNCIL,"3,605.94",CIL,Contributions to other Bodies,07-Apr-21,2122/01,SME,N,
20027138,GREAT WALDINGFIELD PARISH COUNCIL,"14,946.89",CIL,Contributions to other Bodies,07-Apr-21,2122/01,SME,N,
20027139,GROTON PARISH COUNCIL,"2,442.44",CIL,Contributions to other Bodies,07-Apr-21,2122/01,SME,N,
10040001,HADLEIGH TOWN COUNCIL,"9,530.87",Comm Devt Grants,Grants,22-Apr-21,2122/01,SME,N,
10040002,HADLEIGH TOWN COUNCIL,"4,388.00",Comm Devt Grants,Grants,22-Apr-21,2122/01,SME,N,
10040059,HADLEIGH TOWN COUNCIL,"4,150.73",Current Liabilities,Developer Contributions,27-Apr-21,2122/01,SME,N,
20027140,HADLEIGH TOWN COUNCIL,"21,974.39",CIL,Contributions to other Bodies,07-Apr-21,2122/01,SME,N,
20027142,HOLBROOK PARISH COUNCIL,"10,171.26",CIL,Contributions to other Bodies,07-Apr-21,2122/01,SME,N,
10039967,LAVENHAM PARISH COUNCIL,"68,129.63",CIL,Grants,20-Apr-21,2122/01,SME,N,
20027143,LAVENHAM PARISH COUNCIL,"27,259.31",CIL,Contributions to other Bodies,07-Apr-21,2122/01,SME,N,
20027144,LINDSEY PARISH COUNCIL,"1,721.40",CIL,Contributions to other Bodies,07-Apr-21,2122/01,SME,N,
20027145,MONKS ELEIGH PARISH COUNCIL,"6,013.13",CIL,Contributions to other Bodies,07-Apr-21,2122/01,SME,N,
20027146,NAYLAND WITH WISSINGTON PARISH COUNCIL,"6,433.99",CIL,Contributions to other Bodies,07-Apr-21,2122/01,SME,N,
20027147,NEDGING WITH NAUGHTON PARISH COUNCIL,"4,093.56",CIL,Contributions to other Bodies,07-Apr-21,2122/01,SME,N,
20027123,NEWTON PARISH COUNCIL,331.8,Bring Sites,Contributions & Donations,07-Apr-21,2122/01,SME,N,
20027148,NEWTON PARISH COUNCIL,"8,897.46",CIL,Contributions to other Bodies,07-Apr-21,2122/01,SME,N,
20027149,RAYDON PARISH COUNCIL,"5,717.17",CIL,Contributions to other Bodies,07-Apr-21,2122/01,SME,N,
20027150,SHOTLEY PARISH COUNCIL,"2,211.06",CIL,Contributions to other Bodies,07-Apr-21,2122/01,SME,N,
20027151,SPROUGHTON PARISH COUNCIL,"3,357.66",CIL,Contributions to other Bodies,07-Apr-21,2122/01,SME,N,
20027152,STOKE BY NAYLAND PARISH COUNCIL,"2,353.75",CIL,Contributions to other Bodies,07-Apr-21,2122/01,SME,N,
20027153,STUTTON PARISH COUNCIL,"13,198.51",CIL,Contributions to other Bodies,07-Apr-21,2122/01,SME,N,
10039818,SUDBURY TOWN COUNCIL,"5,890.00",Open Spaces,Contracted Services,09-Apr-21,2122/01,SME,N,
10039918,SUDBURY TOWN COUNCIL,"3,090.00",Street & Major Road Cleansing,Contributions & Donations,15-Apr-21,2122/01,SME,N,
10039918,SUDBURY TOWN COUNCIL,"26,780.00",Public Conveniences,Contributions to other Bodies,15-Apr-21,2122/01,SME,N,
20027154,SUDBURY TOWN COUNCIL,"3,510.66",CIL,Contributions to other Bodies,07-Apr-21,2122/01,SME,N,
20027155,WHERSTEAD PARISH COUNCIL,"19,263.57",CIL,Contributions to other Bodies,07-Apr-21,2122/01,SME,N,
20027156,WOOLVERSTONE PARISH COUNCIL,"5,849.29",CIL,Contributions to other Bodies,07-Apr-21,2122/01,SME,N,
10039508,SUFFOLK COUNTY COUNCIL,262.5,Organisational Devt,Misc Supplies & Services Costs,23-Mar-21,2122/01,LGE,Y,50%
10039564,SUFFOLK COUNTY COUNCIL,"1,200.00",Communications,Signs,25-Mar-21,2122/01,LGE,Y,50%
10039751,SUFFOLK COUNTY COUNCIL,"2,540.00",Pre App Charging,Highways  Consultancy,06-Apr-21,2122/01,LGE,N,
10039752,SUFFOLK COUNTY COUNCIL,"1,390.00",Pre App Charging,Prof & Consultancy Fees,06-Apr-21,2122/01,LGE,N,
10039808,SUFFOLK COUNTY COUNCIL,"125,000.00",Mand Disabled Facilities Grant,Grants,07-Apr-21,2122/01,LGE,N,
10039839,SUFFOLK COUNTY COUNCIL,"10,660.00",Independent Living Service,Contributions & Donations,09-Apr-21,2122/01,LGE,N,
10040091,FENN WRIGHT LLP,"1,350.00",General/Supervision & Mgmt,Prof & Consultancy Fees,30-Apr-21,2122/01,SME,N,
10039812,REED SPECIALIST RECRUITMENT LTD,861.88,Governance,Agency Staff,26-Mar-21,2122/01,LGE,Y,50%
10039813,REED SPECIALIST RECRUITMENT LTD,801.59,Governance,Agency Staff,26-Mar-21,2122/01,LGE,Y,50%
10039814,REED SPECIALIST RECRUITMENT LTD,846.75,Governance,Agency Staff,26-Mar-21,2122/01,LGE,Y,50%
10039850,REED SPECIALIST RECRUITMENT LTD,523.18,Governance,Agency Staff,02-Apr-21,2122/01,LGE,Y,50%
10039851,REED SPECIALIST RECRUITMENT LTD,643.53,Governance,Agency Staff,02-Apr-21,2122/01,LGE,Y,50%
10040046,REED SPECIALIST RECRUITMENT LTD,699.98,Governance,Agency Staff,09-Apr-21,2122/01,LGE,Y,50%
10040047,REED SPECIALIST RECRUITMENT LTD,643.53,Governance,Agency Staff,09-Apr-21,2122/01,LGE,Y,50%
10040048,REED SPECIALIST RECRUITMENT LTD,677.4,Governance,Agency Staff,09-Apr-21,2122/01,LGE,Y,50%
10040049,REED SPECIALIST RECRUITMENT LTD,914.49,Governance,Agency Staff,16-Apr-21,2122/01,LGE,Y,50%
10040050,REED SPECIALIST RECRUITMENT LTD,790.3,Governance,Agency Staff,16-Apr-21,2122/01,LGE,Y,50%
10040051,REED SPECIALIST RECRUITMENT LTD,846.75,Governance,Agency Staff,16-Apr-21,2122/01,LGE,Y,50%
10039869,BT REDCARE,"1,415.06",Community Safety-CCTV,Telephone Costs,06-Apr-21,2122/01,LGE,N,
10040068,TELEFONICA UK LIMITED - O2,665.26,ICT,Telephone Costs,27-Apr-21,2122/01,LGE,Y,50%
10039873,SUFFOLK COUNTY COUNCIL - PENSIONS ACCT,"1,310.00",Ext Audit,Audit Fees,12-Apr-21,2122/01,LGE,Y,50%
10040003,COPDOCK & WASHBROOK VILLAGE HALL,"1,000.00",Grants & Contrbns,Grants,22-Apr-21,2122/01,SME,N,
10039760,AUTO INNOVATIONS LTD,282.5,Jnt Waste Contract,"Equipment, Tools & Materials",06-Apr-21,2122/01,SME,Y,50%
10039807,ZURICH MUNICIPAL,"1,000.00",Public Realm Review,Miscellaneous Insurance Excess,06-Apr-21,2122/01,LGE,N,
20027247,GAZPROM ENERGY,178.83,Belle Vue House,Gas,23-Apr-21,2122/01,SME,N,
20027247,GAZPROM ENERGY,68.52,HQ Energy,Gas,23-Apr-21,2122/01,SME,N,
20027247,GAZPROM ENERGY,"5,235.54",Sheltered Accommodation,Gas,23-Apr-21,2122/01,SME,N,
20027247,GAZPROM ENERGY,243.51,Temporary Accommodation,Gas,23-Apr-21,2122/01,SME,N,
10039425,WHYBROW PROPERTY SOLUTIONS LTD,"2,597.57",Responsive maintenance,Repairs,19-Mar-21,2122/01,SME,N,
10039787,WHYBROW PROPERTY SOLUTIONS LTD,"4,756.87",Council House Adaptions,Improvements,07-Apr-21,2122/01,SME,N,
10039972,WHYBROW PROPERTY SOLUTIONS LTD,"2,170.67",Building Services,Repairs,19-Apr-21,2122/01,SME,N,
10039973,WHYBROW PROPERTY SOLUTIONS LTD,"6,524.37",Building Services,Repairs,19-Apr-21,2122/01,SME,N,
10039975,WHYBROW PROPERTY SOLUTIONS LTD,"1,212.19",Building Services,Repairs,19-Apr-21,2122/01,SME,N,
10039996,WHYBROW PROPERTY SOLUTIONS LTD,"8,634.77",Responsive maintenance,Repairs,01-Mar-21,2122/01,SME,N,
10039469,CADCORP,"22,055.00",ICT,Software Licnse (Line of Bus) ,22-Mar-21,2122/01,SME,Y,50%
10039692,TRADITION (UK) LTD,"1,260.27",Treasury Management,Prof & Consultancy Fees,31-Mar-21,2122/01,LGE,N,
10038880,CAPITA SECURE INFORMATION SOLUTIONS LTD,980,Financial Servs,Contracted Services,22-Feb-21,2122/01,SME,Y,50%
20027250,HOUSING REVIEWS LTD,560,Organisational Devt,Training,26-Apr-21,2122/01,SME,N,
10039770,OFFICE FOR NATIONAL STATISTICS,300,Economy & Business,Prof & Consultancy Fees,08-Apr-21,2122/01,LGE,Y,50%
10039910,ROSSI LONG CONSULTING LTD,"1,622.88","Schoolfield, Glemsford",Prof & Consultancy Fees,31-Dec-20,2122/01,SME,N,
10039649,OXBURY CHARTERED SURVEYORS,"4,000.00","Melford Rd, Lavenham S106",Prof & Consultancy Fees,26-Mar-21,2122/01,SME,N,
10039667,OXBURY CHARTERED SURVEYORS,"8,000.00","Melford Rd, Lavenham S106",Prof & Consultancy Fees,05-Mar-21,2122/01,SME,N,
10039846,DALROD (UK) LTD,294,Chilton Depot,Grounds & Site Maintenance,12-Apr-21,2122/01,SME,Y,50%
10039964,OPUS PEOPLE SOLUTIONS LTD,"1,393.26",Current Liabilities,Agency Staff Holding A/C,09-Apr-21,2122/01,SME,N,
10039965,OPUS PEOPLE SOLUTIONS LTD,"1,138.46",Current Liabilities,Agency Staff Holding A/C,15-Apr-21,2122/01,SME,N,
10040041,OPUS PEOPLE SOLUTIONS LTD,"1,894.39",Current Liabilities,Agency Staff Holding A/C,22-Apr-21,2122/01,SME,N,
10039694,ROSE BUILDERS LTD,"52,249.50",Hadleigh Pool Refurb,Grounds & Site Maintenance,31-Mar-21,2122/01,SME,N,
10039431,ECOSYSTEMS TREE & GROUNDS CARE,535,Public Tree Programme,Tree felling/maintenance,21-Mar-21,2122/01,SME,N,
10039514,ECOSYSTEMS TREE & GROUNDS CARE,300,Amenity Areas,Tree felling/maintenance,24-Mar-21,2122/01,SME,N,
10039035,CORNERSTONE BARRISTERS,"11,925.00",Devt Management -Applications,Legal Expenses,02-Mar-21,2122/01,SME,N,
10039886,CORNERSTONE BARRISTERS,"2,275.00",Devt Policy & Local Plans,Prof & Consultancy Fees,15-Apr-21,2122/01,SME,Y,50%
10039966,CORNERSTONE BARRISTERS,450,Comm Devt,Misc Supplies & Services Costs,21-Apr-21,2122/01,SME,N,
10039723,VERTAS GROUP LTD,"3,756.74",HQ Sites Regeneration,Contracted Services,31-Mar-21,2122/01,SME,N,
10039723,VERTAS GROUP LTD,"6,644.38",Unapportionable Central OHs,Contracted Services,31-Mar-21,2122/01,SME,N,
10039927,COLLINS SKIP HIRE,780,Building Services,Waste Disposal,12-Apr-21,2122/01,SME,Y,50%
10039933,COLLINS SKIP HIRE,260,Building Services,Waste Disposal,19-Apr-21,2122/01,SME,Y,50%
10039992,POSTURITE LTD,"1,836.95",Health & Safety,"Equipment, Tools & Materials",19-Apr-21,2122/01,SME,Y,50%
10040036,MATT ALLMAN LTD T/A MOVEITCLEARITFINDIT,"1,718.34",Homelessness Private Sector,Removal Expenses,18-Apr-21,2122/01,SME,N,
10040080,PARKSIDE HOUSING LTD,"3,700.00",Management Team,Prof & Consultancy Fees,25-Apr-21,2122/01,SME,Y,50%
10039750,THE SPORT LEISURE & CULTURE CONSULTANCY ,"13,164.62",Refresh Sports Strategy,Prof & Consultancy Fees,31-Mar-21,2122/01,SME,Y,50%
10039762,"DUNCAN, CAMERON AND HUTCHINSON LTD","74,487.65","1-3 Queensland, Shotley",Major Contracts,17-Mar-21,2122/01,SME,N,
10039763,"DUNCAN, CAMERON AND HUTCHINSON LTD","53,270.58","11-12 Ipswich, Brantham",Major Contracts,17-Mar-21,2122/01,SME,N,
10039878,GRANGEWOOD PLASTIC PACKAGING LTD,795,Domestic Waste,Refuse Sacks,07-Apr-21,2122/01,SME,N,
10039878,GRANGEWOOD PLASTIC PACKAGING LTD,"1,300.00",Domestic Waste,Refuse Sacks,07-Apr-21,2122/01,SME,N,
10040081,SUFFOLK MARKET EVENTS,500,Hadl Market,Contracted Services,28-Apr-21,2122/01,SME,N,
10040027,SAVILLS,"3,000.00",Assets & Development,Prof & Consultancy Fees,23-Apr-21,2122/01,SME,N,
10039659,HAYS SPECIALIST RECRUITMENT LTD,"1,016.40",Business Cont/Emergency Plan,Agency Staff,31-Mar-21,2122/01,LGE,Y,50%
10039660,HAYS SPECIALIST RECRUITMENT LTD,819.4,Business Cont/Emergency Plan,Agency Staff,31-Mar-21,2122/01,LGE,Y,50%
10039661,HAYS SPECIALIST RECRUITMENT LTD,819.4,Business Cont/Emergency Plan,Agency Staff,31-Mar-21,2122/01,LGE,Y,50%
10039662,HAYS SPECIALIST RECRUITMENT LTD,"1,071.34",Business Cont/Emergency Plan,Agency Staff,31-Mar-21,2122/01,LGE,Y,50%
10039663,HAYS SPECIALIST RECRUITMENT LTD,589.8,Building Services,Agency Staff,31-Mar-21,2122/01,LGE,Y,50%
10039754,HAYS SPECIALIST RECRUITMENT LTD,879.05,Business Cont/Emergency Plan,Agency Staff,08-Apr-21,2122/01,LGE,Y,50%
10039755,HAYS SPECIALIST RECRUITMENT LTD,655.52,Business Cont/Emergency Plan,Agency Staff,08-Apr-21,2122/01,LGE,Y,50%
10039756,HAYS SPECIALIST RECRUITMENT LTD,655.52,Business Cont/Emergency Plan,Agency Staff,08-Apr-21,2122/01,LGE,Y,50%
10039757,HAYS SPECIALIST RECRUITMENT LTD,824.12,Business Cont/Emergency Plan,Agency Staff,08-Apr-21,2122/01,LGE,Y,50%
10039887,HAYS SPECIALIST RECRUITMENT LTD,655.52,Business Cont/Emergency Plan,Agency Staff,14-Apr-21,2122/01,LGE,Y,50%
10039888,HAYS SPECIALIST RECRUITMENT LTD,655.52,Business Cont/Emergency Plan,Agency Staff,14-Apr-21,2122/01,LGE,Y,50%
10039889,HAYS SPECIALIST RECRUITMENT LTD,824.12,Business Cont/Emergency Plan,Agency Staff,14-Apr-21,2122/01,LGE,Y,50%
10039890,HAYS SPECIALIST RECRUITMENT LTD,769.17,Business Cont/Emergency Plan,Agency Staff,14-Apr-21,2122/01,LGE,Y,50%
10039988,HAYS SPECIALIST RECRUITMENT LTD,975.2,Business Cont/Emergency Plan,Agency Staff,21-Apr-21,2122/01,LGE,Y,50%
10039989,HAYS SPECIALIST RECRUITMENT LTD,819.4,Business Cont/Emergency Plan,Agency Staff,21-Apr-21,2122/01,LGE,Y,50%
10039990,HAYS SPECIALIST RECRUITMENT LTD,819.4,Business Cont/Emergency Plan,Agency Staff,21-Apr-21,2122/01,LGE,Y,50%
10039991,HAYS SPECIALIST RECRUITMENT LTD,"1,030.15",Business Cont/Emergency Plan,Agency Staff,21-Apr-21,2122/01,LGE,Y,50%
10040087,HAYS SPECIALIST RECRUITMENT LTD,819.4,Business Cont/Emergency Plan,Agency Staff,28-Apr-21,2122/01,LGE,Y,50%
10040088,HAYS SPECIALIST RECRUITMENT LTD,"1,030.14",Business Cont/Emergency Plan,Agency Staff,28-Apr-21,2122/01,LGE,Y,50%
10040089,HAYS SPECIALIST RECRUITMENT LTD,"1,030.15",Business Cont/Emergency Plan,Agency Staff,28-Apr-21,2122/01,LGE,Y,50%
10040090,HAYS SPECIALIST RECRUITMENT LTD,819.4,Business Cont/Emergency Plan,Agency Staff,28-Apr-21,2122/01,LGE,Y,50%
10039705,RICHARD UTTING ASSOCIATES LLP,"1,003.73",New Bld/acquisition,Purchase of Land & Buildings,31-Mar-21,2122/01,SME,N,
10039705,RICHARD UTTING ASSOCIATES LLP,721.27,"Wolsey Grange, Sproughton S106",Prof & Consultancy Fees,31-Mar-21,2122/01,SME,N,
10040092,NORTHERN HOUSING CONSORTIUM,"1,225.00",General/Supervision & Mgmt,Subscriptions,01-Apr-21,2122/01,SME,Y,50%
10039913,PUBLIC SEWER SERVICES,"1,362.61",Building Services,Repairs,31-Mar-21,2122/01,SME,N,
10039914,PUBLIC SEWER SERVICES,350,Building Services,Repairs,31-Mar-21,2122/01,SME,N,
10039773,PLACE SERVICES,700,RAMS,Prof & Consultancy Fees,25-Mar-21,2122/01,SME,Y,50%
10039776,PLACE SERVICES,700,RAMS,Prof & Consultancy Fees,23-Mar-21,2122/01,SME,Y,50%
10039969,ASPECT CONTRACTS LTD,"2,232.00",Asbestos,Improvements,16-Apr-21,2122/01,LGE,N,
20027157,RIX PETROLEUM (EAST ANGLIA) LTD,"1,093.30",Sheltered Accommodation,Heating Oil,07-Apr-21,2122/01,SME,N,
20027157,RIX PETROLEUM (EAST ANGLIA) LTD,675.67,Tenancy Services,Heating Oil,07-Apr-21,2122/01,SME,N,
10039931,D & C LIFTS LTD,285,Sheltered Accommodation,Repairs,19-Apr-21,2122/01,SME,N,
10039974,ENGIE REGENERATION LTD,"161,397.04",Major Imps,Major Contracts,20-Apr-21,2122/01,LGE,N,
10039884,JOHN FORD GROUP LTD,"1,683.31",Mand Disabled Facilities Grant,Grants,14-Apr-21,2122/01,SME,N,
10039936,RESIDENTIALLY CHARTERED SURVEYORS,"1,050.00","Angel Court, Hadleigh",Prof & Consultancy Fees,19-Apr-21,2122/01,SME,N,
10039737,TOP FLOORS (EAST ANGLIA) LTD,"1,233.80",Other HRA Temp Accommodation,Repairs,31-Mar-21,2122/01,SME,N,
10039738,TOP FLOORS (EAST ANGLIA) LTD,951.7,Other HRA Temp Accommodation,Repairs,31-Mar-21,2122/01,SME,N,
10039767,CC2I LIMITED,"1,205.00",Info Mgmt,Corporate Training,08-Apr-21,2122/01,SME,Y,50%
10039858,HOLIDAY INN IPSWICH,320,General Elections,Room Hire,11-Mar-21,2122/01,SME,N,
10039872,ABBEYCROFT LEISURE,"11,895.00",Kingfisher Leisure Centre,Contributions to other Bodies,13-Apr-21,2122/01,LGE,N,
10040069,ABBEYCROFT LEISURE,"36,713.02",Business Cont/Emergency Plan,Contributions to other Bodies,07-Jan-21,2122/01,LGE,N,
10039761,CAROLE CREASEY,"1,500.00",Creative Young Weavers,Contributions & Donations,12-Mar-21,2122/01,ST,N,
10039958,3 POINT PROPERTY MANAGEMENT LTD,550,Guaranteed Rent Scheme,Rent Payable,21-Apr-21,2122/01,SME,N,
10040021,COOKS BLIND AND SHUTTERS LTD,532,Chilton Depot,Grounds & Site Maintenance,23-Apr-21,2122/01,SME,Y,50%
10039855,WEST DEVON BOROUGH COUNCIL,"2,913.00",Financial Servs,Subscriptions,12-Apr-21,2122/01,LGE,N,
10039819,WEST SUFFOLK COUNCIL,"40,767.41",Community Safety-CCTV,Contributions to other Bodies,09-Apr-21,2122/01,LGE,N,
10039864,EAST SUFFOLK COUNCIL,625,Independent Living Service,Contributions & Donations,15-Feb-21,2122/01,LGE,N,
10039868,EAST SUFFOLK COUNCIL,575,Independent Living Service,Contributions & Donations,15-Feb-21,2122/01,LGE,N,
10039953,DG ACCESSIBLE DESIGNS,"1,905.60",Mand Disabled Facilities Grant,Grants,19-Apr-21,2122/01,SME,N,
10039905,THINKING PLACE LTD,321.67,4 Towns Visioning,Prof & Consultancy Fees,18-Mar-21,2122/01,SME,N,
10039651,APTL ENTERPRISES LTD,"3,652.00",PV Panels,Contracted Services,31-Mar-21,2122/01,SME,Y,100%
10039652,APTL ENTERPRISES LTD,"4,648.00",PV Panels,Contracted Services,31-Mar-21,2122/01,SME,N,
10039799,ANGLIA COMMERCIAL FLOORING LTD,410.92,Building Services,Repairs,30-Mar-21,2122/01,SME,N,
10039801,ANGLIA COMMERCIAL FLOORING LTD,359.55,Building Services,Repairs,08-Apr-21,2122/01,SME,N,
10039803,ANGLIA COMMERCIAL FLOORING LTD,940.68,Building Services,Repairs,08-Apr-21,2122/01,SME,N,
10039626,FLOWBIRD SMART CITY UK LIMITED,360.8,Sudb C Parks,Repairs,29-Mar-21,2122/01,SME,N,
10039934,FLOWBIRD SMART CITY UK LIMITED,558,Sudb C Parks,Repairs,15-Apr-21,2122/01,SME,N,
20027240,ANGLIAN WATER BUS (NAT) LTD T/A WAVE,68.23,C Parks General,Water Rates - Metered,22-Apr-21,2122/01,LGE,N,
20027240,ANGLIAN WATER BUS (NAT) LTD T/A WAVE,"10,800.95",Chilton Depot,Water Rates - Metered,22-Apr-21,2122/01,LGE,Y,50%
20027240,ANGLIAN WATER BUS (NAT) LTD T/A WAVE,11.72,Friars Meadow Sudb,Water Rates - Metered,22-Apr-21,2122/01,LGE,N,
20027240,ANGLIAN WATER BUS (NAT) LTD T/A WAVE,79.45,General Rechargeable Works,Misc Supplies & Services Costs,22-Apr-21,2122/01,LGE,N,
20027240,ANGLIAN WATER BUS (NAT) LTD T/A WAVE,103.22,HQ Energy,Water Rates - Metered,22-Apr-21,2122/01,LGE,N,
20027240,ANGLIAN WATER BUS (NAT) LTD T/A WAVE,"1,319.89",Public Conveniences,Water Rates - Metered,22-Apr-21,2122/01,LGE,N,
20027240,ANGLIAN WATER BUS (NAT) LTD T/A WAVE,"3,108.03",Sheltered Accommodation,Water Rates - Metered,22-Apr-21,2122/01,LGE,N,
20027240,ANGLIAN WATER BUS (NAT) LTD T/A WAVE,531.96,Temporary Accommodation,Water Rates - Metered,22-Apr-21,2122/01,LGE,N,
20027240,ANGLIAN WATER BUS (NAT) LTD T/A WAVE,61.43,Tenancy Services,Water Rates - Unmetered,22-Apr-21,2122/01,LGE,N,
10039618,TAYLOR WIMPEY EAST ANGLIA,"35,089.62",Property Acquisition,Prof & Consultancy Fees,29-Mar-21,2122/01,SME,N,
10039618,TAYLOR WIMPEY EAST ANGLIA,"27,534.74","Wolsey Grange, Sproughton S106",Purchase of Land & Buildings,29-Mar-21,2122/01,SME,N,
10040062,WLP PROPERTY RESIDENTIAL MANAGEMENT LTD,525,Guaranteed Rent Scheme,Rent Payable,27-Apr-21,2122/01,SME,N,
10039932,STUDLEY CAPITAL LIMITED,"3,825.00","BRRP-Hamilton,Boreham&BelleVue",Prof & Consultancy Fees,19-Apr-21,2122/01,ST,N,
10039809,PRIVATE LANDLORD,550,Guaranteed Rent Scheme,Rent Payable,09-Apr-21,2122/01,SME,N,
10039032,LAND USE CONSULTANTS LTD,"4,700.00",Devt Management -Applications,Prof & Consultancy Fees,28-Feb-21,2122/01,SME,N,
10039840,LAND USE CONSULTANTS LTD,"12,012.00",Devt Policy & Local Plans,Prof & Consultancy Fees,31-Mar-21,2122/01,SME,Y,50%
10039987,REEFER PROPERTIES LTD,695,Guaranteed Rent Scheme,Rent Payable,22-Apr-21,2122/01,SME,N,
10039743,PENTACO CONSTRUCTION LTD,"221,160.00","Angel Court, Hadleigh",Major Contracts,01-Apr-21,2122/01,SME,N,
10039824,FLOORS AND SNORES SUDBURY LTD,"2,250.00",Temporary Accommodation,Furniture,09-Mar-21,2122/01,SME,N,
10039842,FLOORS AND SNORES SUDBURY LTD,"2,500.00",Temporary Accommodation,Furniture,12-Apr-21,2122/01,SME,N,
10039894,PRIVATE LANDLORD,490,Guaranteed Rent Scheme,Misc Premises Costs,15-Apr-21,2122/01,SME,N,
10039895,PRIVATE LANDLORD,650,Guaranteed Rent Scheme,Rent Payable,15-Apr-21,2122/01,ST,N,
10039959,PRIVATE LANDLORD,650,Guaranteed Rent Scheme,Rent Payable,21-Apr-21,2122/01,SME,N,
10039680,PAUL STEPHENSON ASSOCIATES,"1,300.00","Angel Court, Hadleigh",Contracted Services,31-Mar-21,2122/01,SME,N,
10039716,NOVUS PROPERTY SOLUTIONS LTD,"14,269.95",Planned Maint - Ext Painting,External Painting,29-Mar-21,2122/01,LGE,N,
10039957,PRIVATE LANDLORD,"1,198.00",Guaranteed Rent Scheme,Rent Payable,20-Apr-21,2122/01,ST,N,
10040064,SEQUENCE UK LTD (WILLIAM H BROWN),700,Guaranteed Rent Scheme,Rent Payable,28-Apr-21,2122/01,LGE,N,
10039893,PRIVATE LANDLORD,550,Guaranteed Rent Scheme,Rent Payable,15-Apr-21,2122/01,ST,N,
10039779,THE PUBLIC ART COMPANY,"5,000.00",BRRP-MarketTownVision&Invest,Prof & Consultancy Fees,08-Apr-21,2122/01,ST,N,
10040063,PRIVATE LANDLORD,700,Rent Deposit Scheme,Misc Premises Costs,28-Apr-21,2122/01,ST,N,
10039654,PRIVATE LANDLORD,490,Rent Deposit Scheme,Misc Premises Costs,31-Mar-21,2122/01,SME,N,
10039685,ETF LIMITED,"2,697.00",Business Cont/Emergency Plan,General Cleaning,31-Mar-21,2122/01,SME,N,
10039734,AMPLIS CONSTRUCTION LTD,"24,117.77","Fences, Gates and Walls",Major Contracts,31-Mar-21,2122/01,SME,N,
10039653,PRIVATE LANDLORD,786.5,Guaranteed Rent Scheme,Rent Payable,31-Mar-21,2122/01,ST,N,
20027230,FOXEARTH LETTINGS,383,Rent Deposit Scheme,Misc Premises Costs,06-Apr-21,2122/01,SME,N,
10039837,PRIVATE LANDLORD,650,Guaranteed Rent Scheme,Rent Payable,12-Apr-21,2122/01,ST,N,
20027229,ANDERSON DESIGN & BUILD LIMITED,"96,377.17",Waldingfield Rd S106 Andersons,Major Contracts,24-Mar-21,2122/01,SME,N,
20027253,WILLIAMS & CO,"6,853.20",Building Services,Payments to Tenants,29-Apr-21,2122/01,SME,N,
10039744,DGL QUALITY MANAGEMENT LTD,560,"1-3 Queensland, Shotley",Prof & Consultancy Fees,31-Mar-21,2122/01,SME,N,
10039745,DGL QUALITY MANAGEMENT LTD,560,"11-12 Ipswich, Brantham",Prof & Consultancy Fees,31-Mar-21,2122/01,SME,N,
10039665,ENVIROSIGNS LTD,"1,999.00",Hadleigh Pool Refurb,Improvements,31-Mar-21,2122/01,SME,N,
10039866,CENTRAL EVENT HIRE LTD,"2,118.18",General Elections,"Equipment, Tools & Materials",25-Feb-21,2122/01,SME,N,
10039742,PRIVATE LANDLORD,650,Guaranteed Rent Scheme,Rent Payable,07-Apr-21,2122/01,ST,N,
10039746,QUEUE TECHNOLOGY LTD,"9,525.00",BRRP-MarketTownVision&Invest,Prof & Consultancy Fees,16-Mar-21,2122/01,SME,Y,60%
20027245,SUDBURY REMOVALS AND STORAGE LTD,820,Homeless Prevention Fund,Misc Supplies & Services Costs,21-Apr-21,2122/01,SME,N,
10039657,N GOSLING PLUMBING & PROPERTY MAINTENANC,"1,195.00",Renovation/Home Repair Grants,Grants,29-Mar-21,2122/01,ST,N,
20027231,TEACHER STERN LLP,"13,000.00",Devt Management -Applications,Legal ex - Crt challenge relat,06-Apr-21,2122/01,SME,N,
20027233,STARKINGS & WATSON,"1,105.77",Rent Deposit Scheme,Misc Premises Costs,09-Apr-21,2122/01,SME,N,
10039713,TT MAN WITH A VAN,300,Homelessness Private Sector,Removal Expenses,06-Apr-21,2122/01,ST,N,
10039749,SMARTGAS PLUMBING AND HEATING OF ESSEX,"4,201.90",Mand Disabled Facilities Grant,Grants,06-Apr-21,2122/01,SME,N,
10039804,R HARBORNE PLUMBING SERVICES,"4,522.00",Mand Disabled Facilities Grant,Grants,09-Apr-21,2122/01,SME,N,
10039871,EMEL REMOVALS,325,Homelessness Private Sector,Removal Expenses,06-Apr-21,2122/01,SME,N,
20027236,PRIVATE LANDLORD,800,Guaranteed Rent Scheme,Rent Payable,14-Apr-21,2122/01,SME,N,
20027236,PRIVATE LANDLORD,750,Guaranteed Rent Scheme,Misc Supplies & Services Costs,14-Apr-21,2122/01,SME,N,
10040065,JOANNA JAMES LTD,450,Belle Vue House,Prof & Consultancy Fees,26-Apr-21,2122/01,SME,N,
20027244,PRIVATE LANDLORD,818.46,Rent Deposit Scheme,Misc Premises Costs,21-Apr-21,2122/01,ST,N,
10039874,BLUE FLAME (COLCHESTER) LTD,-184.93,Planned Maint - Heating,Property Servicing,09-Apr-21,2122/01,SME,N,
10039875,BLUE FLAME (COLCHESTER) LTD,-36.98,Planned Maint - Heating,Property Servicing,13-Apr-21,2122/01,SME,N,
10039976,G4S CASH SOLUTIONS LTD,-103.92,Financial Servs,Contracted Services,20-Apr-21,2122/01,LGE,N,
10039977,G4S CASH SOLUTIONS LTD,-103.92,Financial Servs,Contracted Services,20-Apr-21,2122/01,LGE,N,
10039981,G4S CASH SOLUTIONS LTD,-19.2,Financial Servs,Contracted Services,31-Mar-21,2122/01,LGE,N,
10040031,GHB ROOFING,"-9,222.60",Roofing,Major Contracts,19-Apr-21,2122/01,SME,N,
905,CEL SOLICITORS,"-4,045.97",Building Services,Payments to Tenants,20-Apr-21,2122/01,SME,N,
10040314,AE WHITE SURFACING,"5,302.00",Council House Adaptions,Improvements,11-May-21,2122/02,SME,N,
10040411,AE WHITE SURFACING,805,Insurance Claims,Misc Premises Costs,12-Feb-21,2122/02,SME,N,
10040198,BALLANTINES BLINDS & AWNINGS LTD,960,Building Services,"Equipment, Tools & Materials",06-Apr-21,2122/02,SME,Y,50%
10040156,BINDER LTD,225,Sewage Treatment Works,Contracted Services,30-Apr-21,2122/02,SME,N,
10040156,BINDER LTD,123,Sewage Treatment Works,Repairs,30-Apr-21,2122/02,SME,N,
10040306,BLUE FLAME (COLCHESTER) LTD,"24,381.47",Planned Maint - Heating,Property Servicing,05-May-21,2122/02,SME,N,
20027254,BLUE FLAME (COLCHESTER) LTD,"27,760.96",Current Liabilities,Cert IBS Creditors Holding ac,05-May-21,2122/02,SME,N,
20027264,BLUE FLAME (COLCHESTER) LTD,"45,161.83",Current Liabilities,Cert IBS Creditors Holding ac,12-May-21,2122/02,SME,N,
20027271,BLUE FLAME (COLCHESTER) LTD,"10,422.33",Current Liabilities,Cert IBS Creditors Holding ac,19-May-21,2122/02,SME,N,
20027275,BLUE FLAME (COLCHESTER) LTD,"12,618.30",Current Liabilities,Cert IBS Creditors Holding ac,26-May-21,2122/02,SME,N,
10040250,BOLTON BROTHERS LTD,268.13,Bring Sites,Contracted Services,30-Apr-21,2122/02,SME,N,
10040545,BORDER FLOORING,"8,569.57",Pld Maint/Enhncmts-Kingfisher,Repairs,25-May-21,2122/02,SME,N,
10040070,BOWER FULLER,"1,805.85",Sheltered Accommodation,Fire Prevention,27-Apr-21,2122/02,SME,N,
10040320,BOWER FULLER,"4,284.58",Sheltered Accommodation,Fire Prevention,10-May-21,2122/02,SME,N,
10040321,BOWER FULLER,972.7,Sheltered Accommodation,Fire Prevention,11-May-21,2122/02,SME,N,
10040350,BOWER FULLER,"3,870.60",Tenancy Services,Fire Prevention,01-Apr-21,2122/02,SME,N,
10040351,BOWER FULLER,600.82,Tenancy Services,Fire Prevention,01-Apr-21,2122/02,SME,N,
10040352,BOWER FULLER,"2,752.38",Chilton Depot,Fire Prevention,01-Apr-21,2122/02,SME,Y,50%
10040353,BOWER FULLER,277.2,Tenancy Services,Fire Prevention,01-Apr-21,2122/02,SME,N,
10040354,BOWER FULLER,"1,488.24",Tenancy Services,Fire Prevention,01-Apr-21,2122/02,SME,N,
10040355,BOWER FULLER,"4,956.60",Tenancy Services,Fire Prevention,01-Apr-21,2122/02,SME,N,
10040275,AQUASAMPLERS,495,Water Sampling,Sampling & Analysis,30-Apr-21,2122/02,SME,N,
10040106,CLARKES OF WALSHAM LTD,360,Building Services,"Equipment, Tools & Materials",30-Apr-21,2122/02,SME,N,
10040385,CLARKES OF WALSHAM LTD,840.38,Building Services,Repairs,14-May-21,2122/02,SME,N,
10040386,CLARKES OF WALSHAM LTD,803.38,Building Services,Repairs,14-May-21,2122/02,SME,N,
10040079,D W ADAMS LTD,"2,612.00",Building Services,Repairs,28-Apr-21,2122/02,SME,N,
10040112,D W ADAMS LTD,285,Building Services,Repairs,30-Apr-21,2122/02,SME,N,
10040233,D W ADAMS LTD,895,Building Services,Repairs,07-May-21,2122/02,SME,N,
10040234,D W ADAMS LTD,787,Building Services,Repairs,07-May-21,2122/02,SME,N,
10040236,D W ADAMS LTD,540,Building Services,Repairs,07-May-21,2122/02,SME,N,
10040313,D W ADAMS LTD,"11,100.37",Council House Adaptions,Improvements,30-Apr-21,2122/02,SME,N,
10040383,D W ADAMS LTD,542,Building Services,Repairs,14-May-21,2122/02,SME,N,
10040537,DOLPHIN STAIRLIFTS (EAST ANGLIA) LTD,"4,190.00",Mand Disabled Facilities Grant,Grants,24-May-21,2122/02,SME,N,
10040466,CIVICA ELECTION SERVICES,"24,340.58",General Elections,Commercial Printing,09-Apr-21,2122/02,LGE,N,
10040099,ENVIROVENT LTD,709,Dampness & Condensation,Repairs,27-Apr-21,2122/02,SME,N,
10040230,FELGAINS CARE CENTRE,"3,750.25",Council House Adaptions,Improvements,29-Apr-21,2122/02,SME,N,
10040581,FELGAINS CARE CENTRE,"3,267.00",Mand Disabled Facilities Grant,Grants,26-May-21,2122/02,SME,N,
10040039,FELLBRIDGE BUILDING SERVICES,"5,495.72",Building Services,Repairs,26-Apr-21,2122/02,SME,N,
10040040,FELLBRIDGE BUILDING SERVICES,"2,890.84",Building Services,Repairs,26-Apr-21,2122/02,SME,N,
10040278,FELLBRIDGE BUILDING SERVICES,"6,359.56",Building Services,Repairs,10-May-21,2122/02,SME,N,
10040279,FELLBRIDGE BUILDING SERVICES,668.03,Building Services,Repairs,10-May-21,2122/02,SME,N,
10040244,FORE-MOST GARAGE DOORS LTD,"1,066.22",Building Services,Repairs,30-Apr-21,2122/02,SME,N,
10040137,G4S CASH SOLUTIONS LTD,458.86,Financial Servs,Contracted Services,02-Mar-21,2122/02,LGE,N,
10040303,GHB ROOFING,"2,776.00",Building Services,Repairs,10-May-21,2122/02,SME,N,
10040349,GHB ROOFING,"1,810.00",Building Services,Repairs,10-May-21,2122/02,SME,N,
10040175,HAYES DIGGINS BUILDERS,"1,970.00",Hadleigh Pool,Misc Premises Costs,20-Apr-21,2122/02,SME,N,
10040176,HAYES DIGGINS BUILDERS,"2,985.00",Pld Maint/Enhncmts-Kingfisher,Repairs,20-Apr-21,2122/02,SME,N,
10040419,HOLMES & HILLS LLP SOLICITORS,"7,474.00",Devt Management -Applications,Legal expenses - Costs awarded,14-May-21,2122/02,SME,N,
10040144,HUDSON MEDIA PARTNERSHIP LTD,260,Customer Servs,"Equipment, Tools & Materials",29-Apr-21,2122/02,SME,Y,50%
10040311,MATERIAL CHANGE COMPOSTING LTD,608.4,Open Spaces,"Equipment, Tools & Materials",04-May-21,2122/02,LGE,N,
10040533,MATERIAL CHANGE COMPOSTING LTD,746,Open Spaces,"Equipment, Tools & Materials",08-Dec-20,2122/02,LGE,N,
10040348,MERCURY BUILDING SERVICES LTD,"3,376.50",Sheltered Accommodation,Legionella Testing,13-May-21,2122/02,SME,N,
10040402,MERCURY BUILDING SERVICES LTD,"1,230.00",Sheltered Accommodation,Repairs,14-May-21,2122/02,SME,N,
10040417,MERCURY BUILDING SERVICES LTD,162.5,Kingfisher Leisure Centre,Repairs,17-May-21,2122/02,SME,N,
10040417,MERCURY BUILDING SERVICES LTD,"1,803.30",Hadleigh Pool,Repairs,17-May-21,2122/02,SME,N,
10039354,MIXBROW LTD,"5,764.12",Council House Adaptions,Improvements,28-Feb-21,2122/02,SME,N,
10040427,MONTHIND CLEAN LTD,624.43,Jnt Waste Contract,General Cleaning,15-May-21,2122/02,LGE,Y,50%
10040130,ORWELL HOUSING ASSOCIATION LTD,"4,375.00",Other Temp Accommodation,Contracted Services,30-Apr-21,2122/02,LGE,N,
10040132,ORWELL HOUSING ASSOCIATION LTD,293.58,Sheltered Accommodation,Contracted Services,30-Apr-21,2122/02,LGE,N,
10040133,ORWELL HOUSING ASSOCIATION LTD,524.56,Sheltered Accommodation,Contracted Services,30-Apr-21,2122/02,LGE,N,
10040391,ORWELL HOUSING ASSOCIATION LTD,293.58,Sheltered Accommodation,Contracted Services,30-Mar-21,2122/02,LGE,N,
10040392,ORWELL HOUSING ASSOCIATION LTD,293.58,Sheltered Accommodation,Contracted Services,30-Mar-21,2122/02,LGE,N,
10040393,ORWELL HOUSING ASSOCIATION LTD,426.7,Sheltered Accommodation,Contracted Services,30-Mar-21,2122/02,LGE,N,
10040397,ORWELL HOUSING ASSOCIATION LTD,402.93,Sheltered Accommodation,Contracted Services,30-Mar-21,2122/02,LGE,N,
10040398,ORWELL HOUSING ASSOCIATION LTD,293.58,Sheltered Accommodation,Contracted Services,30-Mar-21,2122/02,LGE,N,
10040334,PITMAN BROTHERS (DECORATORS) LTD,"2,050.00",Building Services,Repairs,11-May-21,2122/02,SME,N,
10040067,REID PLUMBING & HEATING CONTRACTORS LTD,"23,306.85",Central Heating,Major Contracts,27-Apr-21,2122/02,SME,N,
10040077,REID PLUMBING & HEATING CONTRACTORS LTD,"9,087.85",Central Heating,Major Contracts,27-Apr-21,2122/02,SME,N,
10040196,REID PLUMBING & HEATING CONTRACTORS LTD,"16,858.93",Central Heating,Major Contracts,05-May-21,2122/02,SME,N,
10040229,REID PLUMBING & HEATING CONTRACTORS LTD,"8,397.50",Central Heating,Major Contracts,19-Apr-21,2122/02,SME,N,
10040325,REID PLUMBING & HEATING CONTRACTORS LTD,"13,306.09",Central Heating,Major Contracts,12-May-21,2122/02,SME,N,
10040452,REID PLUMBING & HEATING CONTRACTORS LTD,"12,343.20",Central Heating,Major Contracts,19-May-21,2122/02,SME,N,
10040289,RICOH UK LTD,"1,042.90",ICT,Photocopying,06-May-21,2122/02,LGE,Y,50%
10040557,RICOH UK LTD,665.97,ICT,Photocopying,06-May-21,2122/02,LGE,Y,50%
10040141,SEAGER HOME SOLUTIONS,"2,680.74",Building Services,Repairs,30-Apr-21,2122/02,SME,N,
10040142,SEAGER HOME SOLUTIONS,"1,261.28",Building Services,Repairs,30-Apr-21,2122/02,SME,N,
10040170,SEAGER HOME SOLUTIONS,"5,350.09",Mand Disabled Facilities Grant,Grants,04-May-21,2122/02,SME,N,
10040550,SUFFOLK POLICE & CRIME COMMISSIONER,"1,000.00",Homelessness Private Sector,Contributions to other Bodies,25-May-21,2122/02,LGE,N,
10040288,SUFFOLK TREE SERVICES LTD,"1,250.00",Amenity Areas,Tree felling/maintenance,11-May-21,2122/02,SME,N,
10040013,SUREFIX,319.74,Building Services,Repairs,19-Apr-21,2122/02,SME,N,
10040118,SUREFIX,"1,982.63",Building Services,Repairs,29-Apr-21,2122/02,SME,N,
10040119,SUREFIX,"1,950.00",Building Services,Repairs,30-Apr-21,2122/02,SME,N,
10040379,SUREFIX,850,Building Services,Repairs,13-May-21,2122/02,SME,N,
10040490,SUREFIX,750,Building Services,Repairs,08-Apr-21,2122/02,SME,N,
10040134,TANKCHANGE LTD,"2,095.00",Central Heating,Improvements,30-Apr-21,2122/02,SME,N,
10040139,TANKCHANGE LTD,"2,595.00",Central Heating,Improvements,30-Apr-21,2122/02,SME,N,
10040140,TANKCHANGE LTD,445,Central Heating,Improvements,30-Apr-21,2122/02,SME,N,
10040242,TANKCHANGE LTD,345,Responsive maintenance,Repairs,30-Apr-21,2122/02,SME,N,
10040405,TANKCHANGE LTD,500,Responsive maintenance,Repairs,30-Apr-21,2122/02,SME,N,
10040085,THERMATECH,"1,203.20",Sheltered Accommodation,Fire Prevention,28-Apr-21,2122/02,SME,N,
10040359,THERMATECH,293.4,Temporary Accommodation,Fire Prevention,13-May-21,2122/02,SME,N,
10040359,THERMATECH,"4,010.20",Tenancy Services,Fire Prevention,13-May-21,2122/02,SME,N,
10040042,WINDIMAN LTD,"1,518.60",Building Services,Repairs,22-Apr-21,2122/02,SME,N,
10040224,ARCHANT COMMUNITY MEDIA LTD,866.74,Devt Management -Applications,Advertising&mkting (non-staff),30-Apr-21,2122/02,LGE,N,
10040280,ARCHANT COMMUNITY MEDIA LTD,709.15,Devt Management -Applications,Advertising&mkting (non-staff),08-May-21,2122/02,LGE,N,
10040412,ARCHANT COMMUNITY MEDIA LTD,786.08,Devt Policy & Local Plans,Advertising&mkting (non-staff),15-May-21,2122/02,LGE,Y,50%
10040413,ARCHANT COMMUNITY MEDIA LTD,"1,690.48",Devt Policy & Local Plans,Advertising&mkting (non-staff),15-May-21,2122/02,LGE,Y,50%
10040414,ARCHANT COMMUNITY MEDIA LTD,656.62,Devt Management -Applications,Advertising&mkting (non-staff),15-May-21,2122/02,LGE,N,
10040328,LOCAL GOVERNMENT ASSOCIATION,200,Management Team,Conference Expenses,12-May-21,2122/02,LGE,Y,50%
10040328,LOCAL GOVERNMENT ASSOCIATION,400,Cost of Democracy,Conference Expenses,12-May-21,2122/02,LGE,N,
20027257,LOCAL GOVERNMENT ASSOCIATION,"8,950.86",Governance,Subscriptions,09-Apr-21,2122/02,LGE,N,
10040103,IDOX SOFTWARE LTD,"3,050.00",Economy & Business,Prof & Consultancy Fees,30-Apr-21,2122/02,SME,Y,50%
10040103,IDOX SOFTWARE LTD,"3,050.00",Community Safety-General,Contributions & Donations,30-Apr-21,2122/02,SME,Y,50%
10040075,NPS PROPERTY CONSULTANTS LTD,"1,991.00",Environmental Imps,Prof & Consultancy Fees,27-Apr-21,2122/02,LGE,N,
10040076,NPS PROPERTY CONSULTANTS LTD,"1,362.50",Council House Adaptions,Prof & Consultancy Fees,27-Apr-21,2122/02,LGE,N,
10040514,IPSWICH BOROUGH COUNCIL,"1,538.97",Communications,Commercial Printing,21-May-21,2122/02,LGE,Y,50%
10040548,IPSWICH BOROUGH COUNCIL,"6,693.84",Civil Parking Enforcement,Contributions to other Bodies,24-May-21,2122/02,LGE,Y,45%
20027273,IPSWICH BOROUGH COUNCIL,"39,936.00",Endeavour House - HQ,NNDR Payable,18-May-21,2122/02,LGE,Y,50%
20027274,IPSWICH BOROUGH COUNCIL,"40,704.00",Endeavour House - HQ,NNDR Payable,18-May-21,2122/02,LGE,Y,50%
20027350,EDF ENERGY,87.62,Belle Vue House,Electricity,08-May-21,2122/02,LGE,N,
20027350,EDF ENERGY,906.06,C Parks General,Electricity,08-May-21,2122/02,LGE,N,
20027350,EDF ENERGY,2.73,Calais St Depot,Electricity,08-May-21,2122/02,LGE,N,
20027350,EDF ENERGY,455.25,Chilton Depot,Electricity,08-May-21,2122/02,LGE,Y,50%
20027350,EDF ENERGY,242.58,Climate Change and Sustainabil,Electricity,08-May-21,2122/02,LGE,N,
20027350,EDF ENERGY,84.71,Community Safety-CCTV,Electricity,08-May-21,2122/02,LGE,N,
20027350,EDF ENERGY,12.35,Hadl Market,Electricity,08-May-21,2122/02,LGE,N,
20027350,EDF ENERGY,10.78,Headquarters General,Electricity,08-May-21,2122/02,LGE,N,
20027350,EDF ENERGY,982.26,HQ Energy,Electricity,08-May-21,2122/02,LGE,N,
20027350,EDF ENERGY,429.26,Public Conveniences,Electricity,08-May-21,2122/02,LGE,N,
20027350,EDF ENERGY,92.03,Sewage Treatment Works,Electricity,08-May-21,2122/02,LGE,N,
20027350,EDF ENERGY,"7,041.78",Sheltered Accommodation,Electricity,08-May-21,2122/02,LGE,N,
20027350,EDF ENERGY,158.57,SP Comm Alarms (Non-SH),Electricity,08-May-21,2122/02,LGE,N,
20027350,EDF ENERGY,298.98,Temporary Accommodation,Electricity,08-May-21,2122/02,LGE,N,
20027350,EDF ENERGY,"4,126.04",Tenancy Services,Electricity,08-May-21,2122/02,LGE,N,
20027350,EDF ENERGY,"1,680.64",Sheltered Accommodation,Electricity,08-May-21,2122/02,LGE,N,
10040060,BUILDING ENERGY COMPLIANCE LTD,975,Hadleigh Pool,Repairs,20-Apr-21,2122/02,SME,N,
20027272,COMPUTERSHARE ,923,Current Assets,ChildCare Vouchers-Control,21-May-21,2122/02,LGE,N,
20027281,BENTLEY VILLAGE HALL,310,General Elections,Room Hire,27-May-21,2122/02,SME,N,
20027300,HADLEIGH MARKET FEOFFMENT CHARITY,320,General Elections,Room Hire,27-May-21,2122/02,SME,N,
20027304,HINTLESHAM & CHATTISHAM COMMUNITY COUNCI,375,General Elections,Room Hire,27-May-21,2122/02,SME,N,
10040197,LAVENHAM PARISH COUNCIL,"17,000.00",CIL,Grants,06-May-21,2122/02,SME,N,
10040072,SUDBURY TOWN COUNCIL,280,Sheltered Accommodation,Cleaning Materials,27-Apr-21,2122/02,SME,N,
10040228,SUDBURY TOWN COUNCIL,"1,692.80",Hadl Market,Contracted Services,06-May-21,2122/02,SME,N,
10040199,SUFFOLK COUNTY COUNCIL,"8,880.00",ICT,Telephone Costs,05-May-21,2122/02,LGE,Y,50%
10040223,SUFFOLK COUNTY COUNCIL,"24,930.00",Civil Protection & Emerg Plg,Contributions & Donations,06-May-21,2122/02,LGE,N,
10040226,SUFFOLK COUNTY COUNCIL,"5,000.00",Jnt Waste Contract,Subscriptions,04-May-21,2122/02,LGE,N,
10040238,SUFFOLK COUNTY COUNCIL,"28,016.05",Domestic Waste,MRF Disposal,06-May-21,2122/02,LGE,N,
10040238,SUFFOLK COUNTY COUNCIL,"13,117.03",Garden Waste,Garden Waste Disposal,06-May-21,2122/02,LGE,N,
10040326,SUFFOLK COUNTY COUNCIL,"45,871.95",Trade Waste,Trade Waste Disposal,11-May-21,2122/02,LGE,N,
10040358,SUFFOLK COUNTY COUNCIL,786.13,General Rechargeable Works,Misc Supplies & Services Costs,12-May-21,2122/02,LGE,N,
10040361,SUFFOLK COUNTY COUNCIL,"6,428.50",Climate Change and Sustainabil,Contributions to other Bodies,12-May-21,2122/02,LGE,N,
10040319,ROYAL MAIL,"5,211.10",General Elections,Postage,04-May-21,2122/02,LGE,N,
10040559,ROYAL MAIL,"1,504.12",General Elections,Postage,11-May-21,2122/02,LGE,N,
10040153,REED SPECIALIST RECRUITMENT LTD,801.59,Governance,Agency Staff,23-Apr-21,2122/02,LGE,Y,50%
10040154,REED SPECIALIST RECRUITMENT LTD,812.88,Governance,Agency Staff,23-Apr-21,2122/02,LGE,Y,50%
10040155,REED SPECIALIST RECRUITMENT LTD,846.75,Governance,Agency Staff,23-Apr-21,2122/02,LGE,Y,50%
10040256,REED SPECIALIST RECRUITMENT LTD,876.78,Governance,Agency Staff,30-Apr-21,2122/02,LGE,Y,50%
10040258,REED SPECIALIST RECRUITMENT LTD,869.33,Governance,Agency Staff,30-Apr-21,2122/02,LGE,Y,50%
10040259,REED SPECIALIST RECRUITMENT LTD,835.46,Governance,Agency Staff,30-Apr-21,2122/02,LGE,Y,50%
10040342,REED SPECIALIST RECRUITMENT LTD,677.4,Governance,Agency Staff,02-Apr-21,2122/02,LGE,Y,50%
10040418,REED SPECIALIST RECRUITMENT LTD,"6,820.00",Financial Servs,Recruitment,14-Apr-21,2122/02,LGE,Y,50%
10040423,REED SPECIALIST RECRUITMENT LTD,716.92,Governance,Agency Staff,07-May-21,2122/02,LGE,Y,50%
10040424,REED SPECIALIST RECRUITMENT LTD,530.63,Governance,Agency Staff,07-May-21,2122/02,LGE,Y,50%
10040425,REED SPECIALIST RECRUITMENT LTD,666.11,Governance,Agency Staff,07-May-21,2122/02,LGE,Y,50%
10040516,REED SPECIALIST RECRUITMENT LTD,880.62,Governance,Agency Staff,14-May-21,2122/02,LGE,Y,50%
10040517,REED SPECIALIST RECRUITMENT LTD,869.33,Governance,Agency Staff,14-May-21,2122/02,LGE,Y,50%
10040518,REED SPECIALIST RECRUITMENT LTD,835.46,Governance,Agency Staff,14-May-21,2122/02,LGE,Y,50%
10040380,BUPA,"6,871.13",Organisational Devt,Contracted Services,20-Apr-21,2122/02,LGE,Y,50%
10040598,TELEFONICA UK LIMITED - O2,655.91,ICT,Telephone Costs,27-May-21,2122/02,LGE,Y,50%
20027291,COPDOCK & WASHBROOK VILLAGE HALL,310,General Elections,Room Hire,27-May-21,2122/02,SME,Y,50%
10040317,BT PAYMENT SERVICES,"5,048.56",ICT,Telephone Costs,04-May-21,2122/02,LGE,Y,50%
10040519,EAST OF ENGLAND CO-OPERATIVE SOCIETY LTD,"9,621.67",General Elections,Room Hire,08-May-21,2122/02,LGE,Y,60%
10040520,EAST OF ENGLAND CO-OPERATIVE SOCIETY LTD,"5,634.00",Cost of Democracy,Room Hire,11-May-21,2122/02,LGE,Y,50%
10040521,EAST OF ENGLAND CO-OPERATIVE SOCIETY LTD,400,Cost of Democracy,Room Hire,12-May-21,2122/02,LGE,Y,50%
10040522,EAST OF ENGLAND CO-OPERATIVE SOCIETY LTD,"1,050.00",Cost of Democracy,Room Hire,18-May-21,2122/02,LGE,Y,50%
20027276,GAZPROM ENERGY,116.67,Belle Vue House,Gas,26-May-21,2122/02,SME,N,
20027276,GAZPROM ENERGY,35.97,HQ Energy,Gas,26-May-21,2122/02,SME,N,
20027276,GAZPROM ENERGY,"4,761.96",Sheltered Accommodation,Gas,26-May-21,2122/02,SME,N,
20027276,GAZPROM ENERGY,185.4,Temporary Accommodation,Gas,26-May-21,2122/02,SME,N,
10040497,VERSAPAK INTERNATIONAL LIMITED,"1,069.95",General Elections,"Equipment, Tools & Materials",07-Apr-21,2122/02,SME,Y,50%
10040055,WHYBROW PROPERTY SOLUTIONS LTD,"6,980.39",Kitchens/Bathrooms,Improvements,22-Apr-21,2122/02,SME,N,
10040100,WHYBROW PROPERTY SOLUTIONS LTD,"4,197.07",Building Services,Repairs,29-Apr-21,2122/02,SME,N,
10040465,WHYBROW PROPERTY SOLUTIONS LTD,"3,418.54",Building Services,Repairs,18-May-21,2122/02,SME,N,
10040460,L A C CLEANING CONTRACTORS LIMITED,345.5,Other Temp Accommodation,General Cleaning,19-May-21,2122/02,SME,N,
10040102,ARMSTRONG YORK ASBESTOS ENVIRONMENTAL,"7,656.55",Asbestos Survey & Reinspection,Prof & Consultancy Fees,31-Mar-21,2122/02,SME,N,
10040421,ARMSTRONG YORK ASBESTOS ENVIRONMENTAL,"13,376.50",Asbestos Survey & Reinspection,Prof & Consultancy Fees,30-Apr-21,2122/02,SME,N,
10040168,BIBBY FACTORS SLOUGH LIMITED,"5,268.00",Mand Disabled Facilities Grant,Grants,04-May-21,2122/02,LGE,N,
10040451,BIBBY FACTORS SLOUGH LIMITED,"5,982.00",Mand Disabled Facilities Grant,Grants,17-May-21,2122/02,LGE,N,
10040456,BIBBY FACTORS SLOUGH LIMITED,295,Mand Disabled Facilities Grant,Grants,18-May-21,2122/02,LGE,N,
10040277,HOUSING REVIEWS LTD,"2,400.00",Homelessness Private Sector,Misc Supplies & Services Costs,22-Apr-21,2122/02,SME,N,
10040184,ROSSI LONG CONSULTING LTD,"1,595.00","Raydon Way, Gt Cornard",Prof & Consultancy Fees,30-Apr-21,2122/02,SME,N,
10040343,ROSSI LONG CONSULTING LTD,850,"Raydon Way, Gt Cornard",Prof & Consultancy Fees,26-Feb-21,2122/02,SME,N,
20027310,LAWSHALL VILLAGE HALL MANAGEMENT COMMITT,300,General Elections,Room Hire,27-May-21,2122/02,SME,N,
10040157,OPUS PEOPLE SOLUTIONS LTD,"1,072.03",Current Liabilities,Agency Staff Holding A/C,29-Apr-21,2122/02,SME,N,
10040262,OPUS PEOPLE SOLUTIONS LTD,"1,233.62",Current Liabilities,Agency Staff Holding A/C,06-May-21,2122/02,SME,N,
10040428,OPUS PEOPLE SOLUTIONS LTD,"1,199.52",Current Liabilities,Agency Staff Holding A/C,12-May-21,2122/02,SME,N,
10040523,OPUS PEOPLE SOLUTIONS LTD,"1,264.09",Current Liabilities,Agency Staff Holding A/C,20-May-21,2122/02,SME,N,
10040338,CORNERSTONE BARRISTERS,"2,025.00","Alc,Ents&Late Night Refreshmt",Legal Expenses,11-May-21,2122/02,SME,N,
10040357,CORNERSTONE BARRISTERS,"1,800.00",Devt Management -Applications,Legal Expenses,12-May-21,2122/02,SME,N,
10040186,VERTAS GROUP LTD,308,Devt Policy & Local Plans,Commercial Printing,13-Apr-21,2122/02,SME,Y,50%
10040209,VERTAS GROUP LTD,"12,659.83",Central Postal Serv,Postage,30-Apr-21,2122/02,SME,Y,50%
10040475,VERTAS GROUP LTD,"11,059.20",Unapportionable Central OHs,Security Systems,30-Apr-21,2122/02,SME,N,
10040038,COLLINS SKIP HIRE,780,Building Services,Waste Disposal,26-Apr-21,2122/02,SME,Y,50%
10040252,COLLINS SKIP HIRE,780,Building Services,Waste Disposal,10-May-21,2122/02,SME,Y,50%
10040415,COLLINS SKIP HIRE,780,Building Services,Waste Disposal,17-May-21,2122/02,SME,Y,50%
20027296,GREAT WALDINGFIELD VILLAGE HALL,384,General Elections,Room Hire,27-May-21,2122/02,SME,N,
10040181,THE SPORT LEISURE & CULTURE CONSULTANCY ,"7,010.86",Refresh Sports Strategy,Prof & Consultancy Fees,30-Apr-21,2122/02,SME,Y,50%
10040485,HEALTH  ASSURED LTD,"4,697.00",Organisational Devt,Contracted Services,30-Apr-21,2122/02,LGE,Y,50%
10040486,"DUNCAN, CAMERON AND HUTCHINSON LTD","35,344.54","11-12 Ipswich, Brantham",Major Contracts,27-Apr-21,2122/02,SME,N,
10040487,"DUNCAN, CAMERON AND HUTCHINSON LTD","106,646.47","1-3 Queensland, Shotley",Major Contracts,27-Apr-21,2122/02,SME,N,
10040180,CHEC PLANNING LTD,"4,468.69",Nghbrhd Plan Designations,Prof & Consultancy Fees,04-May-21,2122/02,SME,N,
10040496,CHEC PLANNING LTD,"5,472.81",Nghbrhd Plan Designations,Prof & Consultancy Fees,20-May-21,2122/02,SME,N,
10040448,LEADERS LETTING & ESTATE AGENTS,500,Homelessness Private Sector,Misc Premises Costs,14-May-21,2122/02,SME,N,
20027340,HADLEIGH CRICKET CLUB,320,General Elections,Room Hire,27-May-21,2122/02,SME,N,
10040257,LEISTON PRESS LIMITED,"1,022.00",Hadleigh Pool Refurb,Improvements,29-Mar-21,2122/02,SME,N,
10040147,ADVANCE SUPPLIES,255.61,Sheltered Accommodation,Cleaning Materials,28-Apr-21,2122/02,SME,N,
10040216,HAYS SPECIALIST RECRUITMENT LTD,819.39,Business Cont/Emergency Plan,Agency Staff,05-May-21,2122/02,LGE,N,
10040217,HAYS SPECIALIST RECRUITMENT LTD,819.4,Business Cont/Emergency Plan,Agency Staff,05-May-21,2122/02,LGE,Y,50%
10040218,HAYS SPECIALIST RECRUITMENT LTD,"1,030.15",Business Cont/Emergency Plan,Agency Staff,05-May-21,2122/02,LGE,Y,50%
10040219,HAYS SPECIALIST RECRUITMENT LTD,"1,030.14",Business Cont/Emergency Plan,Agency Staff,05-May-21,2122/02,LGE,Y,50%
10040344,HAYS SPECIALIST RECRUITMENT LTD,824.12,Business Cont/Emergency Plan,Agency Staff,13-May-21,2122/02,LGE,Y,50%
10040345,HAYS SPECIALIST RECRUITMENT LTD,655.52,Business Cont/Emergency Plan,Agency Staff,13-May-21,2122/02,LGE,Y,50%
10040346,HAYS SPECIALIST RECRUITMENT LTD,824.11,Business Cont/Emergency Plan,Agency Staff,13-May-21,2122/02,LGE,Y,50%
10040347,HAYS SPECIALIST RECRUITMENT LTD,655.52,Business Cont/Emergency Plan,Agency Staff,13-May-21,2122/02,LGE,Y,50%
10040470,HAYS SPECIALIST RECRUITMENT LTD,819.4,Business Cont/Emergency Plan,Agency Staff,20-May-21,2122/02,LGE,Y,50%
10040471,HAYS SPECIALIST RECRUITMENT LTD,"1,030.14",Business Cont/Emergency Plan,Agency Staff,20-May-21,2122/02,LGE,Y,50%
10040472,HAYS SPECIALIST RECRUITMENT LTD,819.4,Business Cont/Emergency Plan,Agency Staff,20-May-21,2122/02,LGE,Y,50%
10040473,HAYS SPECIALIST RECRUITMENT LTD,"1,030.14",Business Cont/Emergency Plan,Agency Staff,20-May-21,2122/02,LGE,Y,50%
10040177,RICHARD UTTING ASSOCIATES LLP,"1,003.73",New Bld/acquisition,Purchase of Land & Buildings,30-Apr-21,2122/02,SME,N,
10040177,RICHARD UTTING ASSOCIATES LLP,721.27,"Wolsey Grange, Sproughton S106",Prof & Consultancy Fees,30-Apr-21,2122/02,SME,N,
10040151,IDVERDE LIMITED,4.37,Hadl Market,Grds Maint Contract,04-May-21,2122/02,SME,N,
10040151,IDVERDE LIMITED,83.88,Industrial Estates,Grds Maint Contract,04-May-21,2122/02,SME,N,
10040151,IDVERDE LIMITED,60.3,Chilton Depot,Grds Maint Contract,04-May-21,2122/02,SME,Y,50%
10040151,IDVERDE LIMITED,177.39,Kingfisher Leisure Centre,Grds Maint Contract,04-May-21,2122/02,SME,N,
10040151,IDVERDE LIMITED,141.55,Nyld & Sprtn Clsd Burial Grds,Grds Maint Contract,04-May-21,2122/02,SME,N,
10040151,IDVERDE LIMITED,"3,303.05",Public Conveniences,Grds Maint Contract,04-May-21,2122/02,SME,N,
10040151,IDVERDE LIMITED,"37,074.48",Street & Major Road Cleansing,Grds Maint Contract,04-May-21,2122/02,SME,N,
10040151,IDVERDE LIMITED,"30,076.15",Open Spaces,Grds Maint Contract,04-May-21,2122/02,SME,N,
10040151,IDVERDE LIMITED,315.45,C Parks General,Grds Maint Contract,04-May-21,2122/02,SME,N,
10040151,IDVERDE LIMITED,22.72,Pin Mill C Park,Grds Maint Contract,04-May-21,2122/02,SME,N,
10040151,IDVERDE LIMITED,411.58,Hadl C Parks,Grds Maint Contract,04-May-21,2122/02,SME,N,
10040151,IDVERDE LIMITED,809.16,Sudb C Parks,Grds Maint Contract,04-May-21,2122/02,SME,N,
10040151,IDVERDE LIMITED,18.24,Sewage Treatment Works,Grds Maint Contract,04-May-21,2122/02,SME,N,
10040151,IDVERDE LIMITED,65.4,Sheltered Accommodation,Grds Maint Contract,04-May-21,2122/02,SME,N,
10040151,IDVERDE LIMITED,38.75,Sheltered Accommodation,Grds Maint Contract,04-May-21,2122/02,SME,N,
10040151,IDVERDE LIMITED,191.56,Sheltered Accommodation,Grds Maint Contract,04-May-21,2122/02,SME,N,
10040151,IDVERDE LIMITED,95.47,Sheltered Accommodation,Grds Maint Contract,04-May-21,2122/02,SME,N,
10040151,IDVERDE LIMITED,72.86,Sheltered Accommodation,Grds Maint Contract,04-May-21,2122/02,SME,N,
10040151,IDVERDE LIMITED,57.06,Sheltered Accommodation,Grds Maint Contract,04-May-21,2122/02,SME,N,
10040151,IDVERDE LIMITED,155.26,Sheltered Accommodation,Grds Maint Contract,04-May-21,2122/02,SME,N,
10040151,IDVERDE LIMITED,38.65,Sheltered Accommodation,Grds Maint Contract,04-May-21,2122/02,SME,N,
10040151,IDVERDE LIMITED,51.62,Sheltered Accommodation,Grds Maint Contract,04-May-21,2122/02,SME,N,
10040151,IDVERDE LIMITED,"14,117.16",Amenity Areas,Grds Maint Contract,04-May-21,2122/02,SME,N,
10040152,IDVERDE LIMITED,"1,032.80",Tenancy Services,Grounds & Site Maintenance,04-May-21,2122/02,SME,N,
10040295,PUBLIC SEWER SERVICES,367.51,Building Services,Repairs,30-Apr-21,2122/02,SME,N,
10040299,PUBLIC SEWER SERVICES,270.64,Dampness & Condensation,Repairs,30-Apr-21,2122/02,SME,N,
10040251,SMARTSURVEY LTD,720,Tenants Forum,Misc Supplies & Services Costs,07-Apr-21,2122/02,SME,Y,50%
10040117,PRIVATE LANDLORD,650,Guaranteed Rent Scheme,Rent Payable,04-May-21,2122/02,SME,N,
20027256,PRIVATE LANDLORD,650,Guaranteed Rent Scheme,Rent Payable,28-Apr-21,2122/02,SME,N,
10040202,THE STOWMARKET GLASS COMPANY LTD,591,Building Services,Repairs,29-Apr-21,2122/02,SME,N,
10040439,ASPECT CONTRACTS LTD,"8,761.00",Asbestos,Improvements,14-May-21,2122/02,LGE,N,
20027336,SUDBURY RUGBY UNION FOOTBALL CLUB,360,General Elections,Room Hire,27-May-21,2122/02,SME,N,
20027263,RIX PETROLEUM (EAST ANGLIA) LTD,187.5,Sheltered Accommodation,Heating Oil,07-May-21,2122/02,SME,N,
20027263,RIX PETROLEUM (EAST ANGLIA) LTD,"1,298.20",Sheltered Accommodation,Heating Oil,07-May-21,2122/02,SME,N,
20027263,RIX PETROLEUM (EAST ANGLIA) LTD,688.31,Tenancy Services,Heating Oil,07-May-21,2122/02,SME,N,
10040282,D & C LIFTS LTD,"1,250.00",Sheltered Accommodation,Annual Bldg Maint Contracts,11-May-21,2122/02,SME,N,
10040282,D & C LIFTS LTD,"1,250.00",Sheltered Accommodation,Annual Bldg Maint Contracts,11-May-21,2122/02,SME,N,
10040282,D & C LIFTS LTD,"1,250.00",Sheltered Accommodation,Annual Bldg Maint Contracts,11-May-21,2122/02,SME,N,
10040282,D & C LIFTS LTD,"1,250.00",Sheltered Accommodation,Annual Bldg Maint Contracts,11-May-21,2122/02,SME,N,
10040282,D & C LIFTS LTD,"1,250.00",Sheltered Accommodation,Annual Bldg Maint Contracts,11-May-21,2122/02,SME,N,
10040389,NORTHUMBRIAN WATER LTD,63.05,Chilton Depot,Legionella Testing,14-May-21,2122/02,LGE,Y,50%
10040389,NORTHUMBRIAN WATER LTD,34.15,Sheltered Accommodation,Legionella Testing,14-May-21,2122/02,LGE,N,
10040389,NORTHUMBRIAN WATER LTD,37.83,Sheltered Accommodation,Legionella Testing,14-May-21,2122/02,LGE,N,
10040389,NORTHUMBRIAN WATER LTD,34.15,HQ Energy,Legionella Testing,14-May-21,2122/02,LGE,N,
10040389,NORTHUMBRIAN WATER LTD,34.15,Lavenham TIC,Legionella Testing,14-May-21,2122/02,LGE,N,
10040389,NORTHUMBRIAN WATER LTD,28.9,Temporary Accommodation,Legionella Testing,14-May-21,2122/02,LGE,N,
10040389,NORTHUMBRIAN WATER LTD,34.15,Sheltered Accommodation,Legionella Testing,14-May-21,2122/02,LGE,N,
10040389,NORTHUMBRIAN WATER LTD,34.15,Sheltered Accommodation,Legionella Testing,14-May-21,2122/02,LGE,N,
10040389,NORTHUMBRIAN WATER LTD,34.15,Public Conveniences,Legionella Testing,14-May-21,2122/02,LGE,N,
10040389,NORTHUMBRIAN WATER LTD,21.02,Public Conveniences,Legionella Testing,14-May-21,2122/02,LGE,N,
10040389,NORTHUMBRIAN WATER LTD,21.02,Public Conveniences,Legionella Testing,14-May-21,2122/02,LGE,N,
10040389,NORTHUMBRIAN WATER LTD,21.02,Public Conveniences,Legionella Testing,14-May-21,2122/02,LGE,N,
10040389,NORTHUMBRIAN WATER LTD,21.02,Public Conveniences,Legionella Testing,14-May-21,2122/02,LGE,N,
10040389,NORTHUMBRIAN WATER LTD,21.02,Public Conveniences,Legionella Testing,14-May-21,2122/02,LGE,N,
10040389,NORTHUMBRIAN WATER LTD,21.02,Public Conveniences,Legionella Testing,14-May-21,2122/02,LGE,N,
10040389,NORTHUMBRIAN WATER LTD,21.02,Public Conveniences,Legionella Testing,14-May-21,2122/02,LGE,N,
10040389,NORTHUMBRIAN WATER LTD,21.02,Public Conveniences,Legionella Testing,14-May-21,2122/02,LGE,N,
10040389,NORTHUMBRIAN WATER LTD,28.9,Responsive maintenance,Legionella Testing,14-May-21,2122/02,LGE,N,
10040389,NORTHUMBRIAN WATER LTD,28.9,Sheltered Accommodation,Legionella Testing,14-May-21,2122/02,LGE,N,
10040389,NORTHUMBRIAN WATER LTD,34.15,Sheltered Accommodation,Legionella Testing,14-May-21,2122/02,LGE,N,
10040389,NORTHUMBRIAN WATER LTD,28.9,Sheltered Accommodation,Legionella Testing,14-May-21,2122/02,LGE,N,
10040389,NORTHUMBRIAN WATER LTD,28.9,Temporary Accommodation,Legionella Testing,14-May-21,2122/02,LGE,N,
10040389,NORTHUMBRIAN WATER LTD,34.15,Temporary Accommodation,Legionella Testing,14-May-21,2122/02,LGE,N,
10040389,NORTHUMBRIAN WATER LTD,28.9,Sheltered Accommodation,Legionella Testing,14-May-21,2122/02,LGE,Y,50%
10040389,NORTHUMBRIAN WATER LTD,34.15,Sheltered Accommodation,Legionella Testing,14-May-21,2122/02,LGE,N,
10040332,STORETEC SERVICES LTD,"1,071.80",ICT,"Equipment, Tools & Materials",30-Apr-21,2122/02,SME,Y,50%
10040333,STORETEC SERVICES LTD,739.24,ICT,"Equipment, Tools & Materials",31-Mar-21,2122/02,SME,Y,50%
10040442,ENGIE REGENERATION LTD,"181,403.00",Major Imps,Major Contracts,21-Apr-21,2122/02,LGE,N,
10040592,JOHN FORD GROUP LTD,"11,416.28",Mand Disabled Facilities Grant,Grants,27-May-21,2122/02,SME,N,
10040207,RESIDENTIALLY CHARTERED SURVEYORS,"2,900.00","Wolsey Grange, Sproughton S106",Prof & Consultancy Fees,05-May-21,2122/02,SME,N,
20027348,SUDBURYS,440,Guaranteed Rent Scheme,Rent Payable,25-May-21,2122/02,SME,N,
20027348,SUDBURYS,750,Guaranteed Rent Scheme,Misc Supplies & Services Costs,25-May-21,2122/02,SME,N,
10040169,TPAS LTD,"1,800.00",Capita System Support,Prof & Consultancy Fees,28-Apr-21,2122/02,SME,Y,50%
10040094,ICENI,845.98,"1-3 Queensland, Shotley",Prof & Consultancy Fees,29-Apr-21,2122/02,SME,N,
10040094,ICENI,422.99,"16 Queensland, Shotley",Prof & Consultancy Fees,29-Apr-21,2122/02,SME,N,
10040095,ICENI,"1,097.53","11-12 Ipswich, Brantham",Prof & Consultancy Fees,29-Apr-21,2122/02,SME,N,
10040096,ICENI,"4,288.15",Waldingfield Rd S106 Andersons,Prof & Consultancy Fees,29-Apr-21,2122/02,SME,N,
10040097,ICENI,"4,779.78","Bantocks Rd, Gt Walding S106",Prof & Consultancy Fees,29-Apr-21,2122/02,SME,N,
10040098,ICENI,"4,375.39",Bourne Hill Wherstead S106 acq,Prof & Consultancy Fees,29-Apr-21,2122/02,SME,N,
10040260,ICENI,724.5,"Angel Court, Hadleigh",Prof & Consultancy Fees,10-May-21,2122/02,SME,N,
20027261,WILLIAM H BROWN ESTATE AGENTS - SUDBURY,"1,400.00",Guaranteed Rent Scheme,Rent Payable,05-May-21,2122/02,SME,N,
10040166,ABBEYCROFT LEISURE,"17,778.94",Hadleigh Pool,Major Contracts,01-Apr-21,2122/02,LGE,N,
10040166,ABBEYCROFT LEISURE,"8,033.97",New Hadl Pl & Leisure Centre,Major Contracts,01-Apr-21,2122/02,LGE,N,
10040166,ABBEYCROFT LEISURE,"34,924.09",Kingfisher Leisure Centre,Major Contracts,01-Apr-21,2122/02,LGE,N,
10040409,ABBEYCROFT LEISURE,"1,085.91",Other Temp Accommodation,General Cleaning,23-Nov-20,2122/02,LGE,N,
10040145,DAVID STAGG & ASSOCIATES LTD T/A DSA ELE,"16,395.07",Rewiring,Major Contracts,29-Apr-21,2122/02,SME,N,
10040482,3 POINT PROPERTY MANAGEMENT LTD,550,Guaranteed Rent Scheme,Rent Payable,20-May-21,2122/02,SME,N,
10040286,WEST SUFFOLK COUNCIL,"15,000.00",Management Team,Subscriptions,11-May-21,2122/02,LGE,N,
10040363,WEST SUFFOLK COUNCIL,"74,319.63",Civil Parking Enforcement,Contributions to other Bodies,10-May-21,2122/02,LGE,Y,55%
10040467,WEST SUFFOLK COUNCIL,"115,266.50",Legal,Contributions to other Bodies,19-May-21,2122/02,LGE,Y,50%
10040594,DG ACCESSIBLE DESIGNS,"1,920.94",Mand Disabled Facilities Grant,Grants,27-May-21,2122/02,SME,N,
10040462,HUGHES TRADE,719.99,Building Services,"Equipment, Tools & Materials",19-May-21,2122/02,LGE,Y,50%
10040109,APTL ENTERPRISES LTD,"4,648.00",PV Panels,Contracted Services,30-Apr-21,2122/02,SME,Y,50%
10040111,APTL ENTERPRISES LTD,"3,652.00",PV Panels,Contracted Services,30-Apr-21,2122/02,SME,Y,44%
10040430,ANGLIA COMMERCIAL FLOORING LTD,439.91,Building Services,Repairs,17-May-21,2122/02,SME,N,
10040431,ANGLIA COMMERCIAL FLOORING LTD,265.29,Building Services,Repairs,17-May-21,2122/02,SME,N,
10040437,ANGLIA COMMERCIAL FLOORING LTD,394.87,Tenancy Services,Repairs,17-May-21,2122/02,SME,N,
10040438,ANGLIA COMMERCIAL FLOORING LTD,277.88,Building Services,Repairs,17-May-21,2122/02,SME,N,
10040183,FLOWBIRD SMART CITY UK LIMITED,845,Tenancy Services,"Equipment, Tools & Materials",30-Apr-21,2122/02,SME,N,
10040022,TAYLOR WIMPEY EAST ANGLIA,"34,721.16",Property Acquisition,Prof & Consultancy Fees,22-Apr-21,2122/02,SME,N,
10040022,TAYLOR WIMPEY EAST ANGLIA,"27,245.60","Wolsey Grange, Sproughton S106",Purchase of Land & Buildings,22-Apr-21,2122/02,SME,N,
10040479,WLP PROPERTY RESIDENTIAL MANAGEMENT LTD,850,Homeless Prevention Fund,Misc Supplies & Services Costs,20-May-21,2122/02,SME,N,
10040552,WLP PROPERTY RESIDENTIAL MANAGEMENT LTD,525,Guaranteed Rent Scheme,Rent Payable,26-May-21,2122/02,SME,N,
20027341,THE STEVENSON CENTRE,320,General Elections,Room Hire,27-May-21,2122/02,SME,N,
10040114,JO CHAPMAN,"2,675.00",Hadleigh Pool Refurb,Prof & Consultancy Fees,30-Apr-21,2122/02,ST,N,
10040446,STUDLEY CAPITAL LIMITED,"3,600.00","BRRP-Hamilton,Boreham&BelleVue",Prof & Consultancy Fees,18-May-21,2122/02,ST,N,
10040185,PRIVATE LANDLORD,550,Guaranteed Rent Scheme,Rent Payable,06-May-21,2122/02,SME,N,
20027288,CAPEL VILLAGE HALL,280,General Elections,Room Hire,27-May-21,2122/02,SME,N,
20027298,HADLEIGH - ST JOSEPHS CATHOLIC CHURCH,350,General Elections,Room Hire,27-May-21,2122/02,SME,N,
20027322,PINEWOOD - BELSTEAD BROOK MUTHU HOTEL,300,General Elections,Room Hire,27-May-21,2122/02,SME,N,
20027335,SUDBURY - BAPTIST CHURCH,300,General Elections,Room Hire,27-May-21,2122/02,SME,N,
20027330,SUDBURY-ST JOHNS METHODIST CHURCH HALL,500,General Elections,Room Hire,27-May-21,2122/02,SME,N,
10040167,TIAA LTD,"4,250.00",Internal Audit,Contracted Services,01-May-21,2122/02,SME,Y,50%
10040104,BYCHOICE LTD,"1,000.00",General/Supervision & Mgmt,Prof & Consultancy Fees,26-Apr-21,2122/02,SME,N,
10040360,PINSENT MASONS LLP,"13,556.00",Belle Vue Refurb/Rplcmt,Prof & Consultancy Fees,10-May-21,2122/02,LGE,N,
10040480,REEFER PROPERTIES LTD,695,Guaranteed Rent Scheme,Rent Payable,20-May-21,2122/02,SME,N,
10040276,THE WINDOW COMPANY (CONTRACTS) LTD,"1,197.05",Sheltered Units-Gen.Imp,Major Contracts,07-May-21,2122/02,SME,N,
10040324,PENTACO CONSTRUCTION LTD,"224,652.00","Angel Court, Hadleigh",Major Contracts,07-May-21,2122/02,SME,N,
10040255,GLASSTAP LIMITED,"1,790.00",Organisational Devt,Training,05-May-21,2122/02,SME,Y,50%
10040327,PRIVATE LANDLORD,490,Guaranteed Rent Scheme,Misc Premises Costs,12-May-21,2122/02,SME,N,
10040404,PRIVATE LANDLORD,650,Guaranteed Rent Scheme,Rent Payable,17-May-21,2122/02,ST,N,
10040481,PRIVATE LANDLORD,650,Guaranteed Rent Scheme,Rent Payable,20-May-21,2122/02,SME,N,
10040143,PAUL STEPHENSON ASSOCIATES,"1,040.00","Angel Court, Hadleigh",Contracted Services,30-Apr-21,2122/02,SME,N,
10040477,PRIVATE LANDLORD,"1,198.00",Guaranteed Rent Scheme,Rent Payable,20-May-21,2122/02,ST,N,
10040388,PLUG-N-GO-LIMITED,375,Environmental Protection,Contracted Services,14-May-21,2122/02,SME,N,
10040478,PRIVATE LANDLORD,550,Guaranteed Rent Scheme,Rent Payable,20-May-21,2122/02,ST,N,
10040240,THE PUBLIC ART COMPANY,"5,000.00",BRRP-MarketTownVision&Invest,Prof & Consultancy Fees,07-May-21,2122/02,ST,N,
10040162,WESTCOTEC LTD,"15,781.92","Schoolfield, Glemsford",Improvements,29-Apr-21,2122/02,SME,N,
10040116,PRIVATE LANDLORD,490,Rent Deposit Scheme,Misc Premises Costs,04-May-21,2122/02,SME,N,
10040285,ETF LIMITED,"2,610.00",Business Cont/Emergency Plan,General Cleaning,30-Apr-21,2122/02,SME,N,
10039993,AMPLIS CONSTRUCTION LTD,"34,485.95","Fences, Gates and Walls",Major Contracts,22-Apr-21,2122/02,SME,N,
10040443,AMPLIS CONSTRUCTION LTD,"39,680.11","Fences, Gates and Walls",Major Contracts,17-May-21,2122/02,SME,N,
10040121,PRIVATE LANDLORD,786.5,Guaranteed Rent Scheme,Rent Payable,05-May-21,2122/02,ST,N,
10040284,PRIVATE LANDLORD,650,Guaranteed Rent Scheme,Rent Payable,11-May-21,2122/02,ST,N,
10040390,COUNTRYSTYLE RECYCLING LTD,"3,031.36",Bring Sites,Contracted Services,30-Apr-21,2122/02,SME,N,
10040440,COUNTRYSTYLE RECYCLING LTD,"3,269.43",Bring Sites,Contracted Services,31-Mar-21,2122/02,SME,N,
20027265,WILLIAMS & CO,405.4,Building Services,Payments to Tenants,10-May-21,2122/02,SME,N,
10040148,DGL QUALITY MANAGEMENT LTD,560,"1-3 Queensland, Shotley",Prof & Consultancy Fees,30-Apr-21,2122/02,SME,N,
10040149,DGL QUALITY MANAGEMENT LTD,560,"11-12 Ipswich, Brantham",Prof & Consultancy Fees,30-Apr-21,2122/02,SME,N,
10039220,RUGBY MANUFACTURING LTD T/A SPORTCLOX LT,"1,589.00",Hadleigh Pool,Misc Premises Costs,10-Mar-21,2122/02,SME,N,
10040120,PRIVATE LANDLORD,650,Guaranteed Rent Scheme,Rent Payable,05-May-21,2122/02,ST,N,
10040122,PRIVATE LANDLORD,800,Guaranteed Rent Scheme,Rent Payable,05-May-21,2122/02,SME,N,
10040173,ENERGY SAVING TRUST LTD,"12,550.00",Building Services,Contracted Services,26-Apr-21,2122/02,SME,Y,50%
10040243,ARAN INSULATION LTD,605,Building Services,Contracted Services,29-Apr-21,2122/02,SME,N,
10040274,CIPFA (COURSES),"2,100.00",Organisational Devt,Training,29-Apr-21,2122/02,LGE,Y,50%
10040310,CIPFA (COURSES),330,Organisational Devt,Post-Entry Training,06-May-21,2122/02,LGE,Y,50%
10040356,REVELLS REMOVALS,"1,633.34",Homeless Prevention Fund,Contracted Services,13-May-21,2122/02,SME,N,
10040339,DANIEL ECUYER THATCHERS,"16,839.00",Renovation/Home Repair Grants,Grants,13-May-21,2122/02,SME,N,
10040364,BROOK GREEN SUPPLY LTD,"12,574.01",Kingfisher Leisure Centre,Gas,12-May-21,2122/02,SME,N,
10040365,BROOK GREEN SUPPLY LTD,"19,254.26",Kingfisher Leisure Centre,Gas,20-Apr-21,2122/02,SME,N,
10040366,BROOK GREEN SUPPLY LTD,"5,744.82",Hadleigh Pool,Gas,01-May-21,2122/02,SME,N,
10040367,BROOK GREEN SUPPLY LTD,"6,497.59",Hadleigh Pool,Gas,20-Apr-21,2122/02,SME,N,
10040469,THE SPACEMAN,251.2,Tenancy Services,Contracted Services,20-May-21,2122/02,ST,N,
10040539,OAKLEY PRESERVATION,"4,550.00",Renovation/Home Repair Grants,Grants,24-May-21,2122/02,ST,N,
20027349,PRIVATE LANDLORD,550,Guaranteed Rent Scheme,Rent Payable,25-May-21,2122/02,ST,N,
20027349,PRIVATE LANDLORD,750,Guaranteed Rent Scheme,Misc Supplies & Services Costs,25-May-21,2122/02,ST,N,
10040526,G4S CASH SOLUTIONS LTD,-201.6,Financial Servs,Contracted Services,30-Apr-21,2122/02,LGE,N,
10040527,G4S CASH SOLUTIONS LTD,-35.24,Financial Servs,Contracted Services,30-Apr-21,2122/02,LGE,N,
10040528,G4S CASH SOLUTIONS LTD,-26.43,Financial Servs,Contracted Services,30-Apr-21,2122/02,LGE,N,
10040381,BUPA,-455.59,Organisational Devt,Contracted Services,13-May-21,2122/02,LGE,Y,50%
EBX0022098,BROWNE JACOBSON LLP,147.2,Current Assets,LLOYDS GENERAL PAYMENTS,24-May-21,2122/02,SME,N,
10040165,WESTCOTEC LTD,-375,"Schoolfield, Glemsford",Improvements,30-Apr-21,2122/02,SME,N,
10040820,ADVANCED CONTROLS & MANAGEMENT SYSTEMS L,"1,089.38",Hadleigh Pool,Repairs,03-Jun-21,2122/03,SME,N,
10040493,AE WHITE SURFACING,550,Building Services,Repairs,20-May-21,2122/03,SME,N,
10040513,AE WHITE SURFACING,200,C Parks General,Repairs,24-May-21,2122/03,SME,N,
10040513,AE WHITE SURFACING,700,Hadl C Parks,Repairs,24-May-21,2122/03,SME,N,
10040513,AE WHITE SURFACING,200,Lavenham C Parks,Repairs,24-May-21,2122/03,SME,N,
10040513,AE WHITE SURFACING,800,Sudb C Parks,Repairs,24-May-21,2122/03,SME,N,
10040979,AE WHITE SURFACING,"9,075.00",Estate Imps/parking areas,Improvements,10-Jun-21,2122/03,SME,N,
10040566,ALLPAY LTD,337.88,Financial Servs,Contracted Services,30-Apr-21,2122/03,LGE,N,
10040580,ANGLIAN WATER,515.45,Water Sampling,Sampling & Analysis,25-May-21,2122/03,LGE,N,
10041073,APSE,"3,484.00",Management Team,Subscriptions,06-Apr-21,2122/03,LGE,Y,50%
10040682,BLUE FLAME (COLCHESTER) LTD,"24,381.47",Planned Maint - Heating,Property Servicing,26-May-21,2122/03,SME,N,
10040875,BLUE FLAME (COLCHESTER) LTD,"42,630.66",Current Liabilities,Cert IBS Creditors Holding ac,09-Jun-21,2122/03,SME,N,
20027354,BLUE FLAME (COLCHESTER) LTD,"19,574.56",Current Liabilities,Cert IBS Creditors Holding ac,02-Jun-21,2122/03,SME,N,
20027358,BLUE FLAME (COLCHESTER) LTD,"38,518.21",Current Liabilities,Cert IBS Creditors Holding ac,16-Jun-21,2122/03,SME,N,
20027363,BLUE FLAME (COLCHESTER) LTD,"63,119.04",Current Liabilities,Cert IBS Creditors Holding ac,23-Jun-21,2122/03,SME,N,
20027370,BLUE FLAME (COLCHESTER) LTD,"43,227.80",Current Liabilities,Cert IBS Creditors Holding ac,30-Jun-21,2122/03,SME,N,
10040888,CAPITA BUSINESS SERVICES LTD,"2,400.00",Building Services,Prof & Consultancy Fees,07-Jun-21,2122/03,LGE,Y,50%
10040743,AQUASAMPLERS,699,Water Sampling,Sampling & Analysis,31-May-21,2122/03,SME,N,
10040651,CASTONS,"21,930.00",Business Cont/Emergency Plan,Prof & Consultancy Fees,27-May-21,2122/03,SME,N,
10040637,CHEQUERS HOTEL LTD,"1,050.00",Homelessness Private Sector,B&B Costs,03-May-21,2122/03,SME,N,
10040640,CHEQUERS HOTEL LTD,528,Homelessness Private Sector,B&B Costs,03-May-21,2122/03,SME,N,
10040813,CHEQUERS HOTEL LTD,300,Homelessness Private Sector,B&B Costs,31-May-21,2122/03,SME,N,
10040816,CHEQUERS HOTEL LTD,720,Homelessness Private Sector,B&B Costs,31-May-21,2122/03,SME,N,
10040818,CHEQUERS HOTEL LTD,420,Homelessness Private Sector,B&B Costs,31-May-21,2122/03,SME,N,
10040731,CLARKE FENCING LTD,426.82,Open Spaces,"Equipment, Tools & Materials",12-Apr-21,2122/03,SME,N,
10040732,CLARKE FENCING LTD,253.53,Open Spaces,"Equipment, Tools & Materials",30-Apr-21,2122/03,SME,N,
10040542,CLARKES OF WALSHAM LTD,"1,039.20",Building Services,"Equipment, Tools & Materials",07-May-21,2122/03,SME,N,
10040653,CLARKES OF WALSHAM LTD,"1,954.50",Building Services,"Equipment, Tools & Materials",28-May-21,2122/03,SME,N,
10040768,CLARKES OF WALSHAM LTD,"3,560.00",Building Services,"Equipment, Tools & Materials",21-May-21,2122/03,SME,N,
10040769,CLARKES OF WALSHAM LTD,333.95,Building Services,"Equipment, Tools & Materials",21-May-21,2122/03,SME,N,
10040957,CLARKES OF WALSHAM LTD,513,Building Services,"Equipment, Tools & Materials",11-Jun-21,2122/03,SME,N,
10040506,D W ADAMS LTD,"3,459.00",Building Services,Repairs,22-May-21,2122/03,SME,N,
10040551,D W ADAMS LTD,"4,352.40",Council House Adaptions,Improvements,24-May-21,2122/03,SME,N,
10040938,DANCE EAST,"2,925.00",Grants & Contrbns,Grants,10-Jun-21,2122/03,SME,N,
10040873,DISTRICT COUNCILS' NETWORK,379,Cost of Democracy,Conference Expenses,08-Jun-21,2122/03,LGE,N,
10040923,DMA HEALTH AND SAFETY LTD,300,Planned Maint - Ext Painting,Prof & Consultancy Fees,09-Jun-21,2122/03,SME,N,
10040698,DOLPHIN STAIRLIFTS (EAST ANGLIA) LTD,"1,860.00",Mand Disabled Facilities Grant,Grants,02-Jun-21,2122/03,SME,N,
10040867,EDWARDS BUILDERS,"4,500.00",Mand Disabled Facilities Grant,Grants,07-Jun-21,2122/03,SME,N,
10040607,CIVICA ELECTION SERVICES,373.49,Electoral Registration,Contracted Services,28-Apr-21,2122/03,LGE,Y,50%
10040608,CIVICA ELECTION SERVICES,"4,221.79",Electoral Registration,Contracted Services,28-Apr-21,2122/03,LGE,Y,50%
10040655,ENER-G SWITCH2 LTD,361.04,Responsive maintenance,Repairs,28-May-21,2122/03,SME,N,
10041018,ENGLISH SECURITY,280.88,Conversions & Adaptations,Prof & Consultancy Fees,29-Apr-21,2122/03,SME,N,
10041022,ENGLISH SECURITY,117.15,Sheltered Accommodation,Fire Prevention,11-May-21,2122/03,SME,N,
10041022,ENGLISH SECURITY,378.57,Responsive maintenance,Repairs,11-May-21,2122/03,SME,N,
10040865,FELGAINS CARE CENTRE,"4,930.10",Mand Disabled Facilities Grant,Grants,08-Jun-21,2122/03,SME,N,
10041026,FELGAINS CARE CENTRE,"3,806.85",Mand Disabled Facilities Grant,Grants,15-Jun-21,2122/03,SME,N,
10040992,FELLBRIDGE BUILDING SERVICES,"8,446.52",Building Services,Repairs,14-Jun-21,2122/03,SME,N,
10040605,FORE-MOST GARAGE DOORS LTD,"1,051.22",Building Services,Repairs,31-May-21,2122/03,SME,N,
10040864,GB ADAPTIONS LTD,"3,644.00",Mand Disabled Facilities Grant,Grants,08-Jun-21,2122/03,SME,N,
10040174,GHB ROOFING,"17,782.95",Roofing,Major Contracts,30-Apr-21,2122/03,SME,N,
10040940,GO START COMMUNITY TRANSPORT,"2,000.00",Grants & Contrbns,Grants,10-Jun-21,2122/03,SME,N,
10040575,HAYES DIGGINS BUILDERS,"9,966.00",Council House Adaptions,Improvements,26-May-21,2122/03,SME,N,
10040897,JEWSON LTD,408,Amenity Areas,Repairs,26-May-21,2122/03,LGE,N,
10040911,JMP SERVICES LTD,460,Street & Major Road Cleansing,Contracted Services,04-Jun-21,2122/03,SME,N,
10040590,JOHN W YOUNGER LTD,"4,061.09",Mand Disabled Facilities Grant,Grants,26-May-21,2122/03,SME,N,
10040618,KENDA-CLEAN,27,Chilton Depot,Window Cleaning,26-May-21,2122/03,SME,Y,50%
10040618,KENDA-CLEAN,"1,217.00",Sheltered Accommodation,Window Cleaning,26-May-21,2122/03,SME,N,
10040618,KENDA-CLEAN,123,Temporary Accommodation,Window Cleaning,26-May-21,2122/03,SME,N,
10040618,KENDA-CLEAN,771,Tenancy Services,Window Cleaning,26-May-21,2122/03,SME,N,
10040441,KEYWAYS THE LOCKSMITHS LTD,968,Conversions & Adaptations,Improvements,18-May-21,2122/03,SME,N,
10040695,MERCURY BUILDING SERVICES LTD,335,Sheltered Accommodation,Legionella Testing,01-Jun-21,2122/03,SME,N,
10040901,MERCURY BUILDING SERVICES LTD,335,Sheltered Accommodation,Legionella Testing,08-Jun-21,2122/03,SME,N,
10040811,MERLIN DMS LTD,510,ICT,Contracted Services,01-Jun-21,2122/03,SME,Y,50%
10040612,MIXBROW LTD,"34,771.39",Council House Adaptions,Improvements,25-May-21,2122/03,SME,N,
10041060,MONTHIND CLEAN LTD,624.43,Jnt Waste Contract,General Cleaning,15-Jun-21,2122/03,LGE,Y,50%
10040563,NEEDHAM MARKET AERIALS LTD,"2,070.00",Tenancy Services,"Equipment, Tools & Materials",19-May-21,2122/03,SME,Y,20%
10040588,PRO-FLAT SPECIALIST SERVICES LTD,596,Building Services,Repairs,25-May-21,2122/03,SME,N,
10040589,PRO-FLAT SPECIALIST SERVICES LTD,596,Building Services,Repairs,25-May-21,2122/03,SME,N,
10040494,REID PLUMBING & HEATING CONTRACTORS LTD,"9,097.99",Central Heating,Major Contracts,18-May-21,2122/03,SME,N,
10040573,REID PLUMBING & HEATING CONTRACTORS LTD,"21,691.17",Central Heating,Major Contracts,26-May-21,2122/03,SME,N,
10040587,REID PLUMBING & HEATING CONTRACTORS LTD,"9,302.40",Central Heating,Major Contracts,26-May-21,2122/03,SME,N,
10040718,REID PLUMBING & HEATING CONTRACTORS LTD,"20,134.92",Central Heating,Major Contracts,02-Jun-21,2122/03,SME,N,
10040766,REID PLUMBING & HEATING CONTRACTORS LTD,"8,848.23",Central Heating,Major Contracts,03-Jun-21,2122/03,SME,N,
10040927,REID PLUMBING & HEATING CONTRACTORS LTD,"17,530.84",Central Heating,Major Contracts,09-Jun-21,2122/03,SME,N,
10041036,REID PLUMBING & HEATING CONTRACTORS LTD,"18,922.21",Central Heating,Major Contracts,16-Jun-21,2122/03,SME,N,
10040886,SPALDINGS LTD,567,RHSSF,"Equipment, Tools & Materials",07-Jun-21,2122/03,SME,N,
10041069,SSI SCHAEFER LTD,"13,395.60",Bins,Bins,17-Jun-21,2122/03,SME,Y,50%
10041106,SUFFOLK TREE SERVICES LTD,500,Amenity Areas,Tree felling/maintenance,21-Jun-21,2122/03,SME,N,
10040613,SUREFIX,"1,998.78",Building Services,Repairs,26-May-21,2122/03,SME,N,
10040614,SUREFIX,750,Building Services,Repairs,26-May-21,2122/03,SME,N,
10040615,SUREFIX,576.26,Building Services,Repairs,24-May-21,2122/03,SME,N,
10040616,SUREFIX,850,Building Services,Repairs,25-May-21,2122/03,SME,N,
10040771,SUREFIX,750,Building Services,Repairs,03-Jun-21,2122/03,SME,N,
10040772,SUREFIX,850,Building Services,Repairs,03-Jun-21,2122/03,SME,N,
10040773,SUREFIX,850,Building Services,Repairs,02-Jun-21,2122/03,SME,N,
10040774,SUREFIX,924.25,Building Services,Repairs,03-Jun-21,2122/03,SME,N,
10040775,SUREFIX,425,Building Services,Repairs,01-Jun-21,2122/03,SME,N,
10040776,SUREFIX,340.32,Building Services,Repairs,01-Jun-21,2122/03,SME,N,
10041081,SUREFIX,850,Building Services,Repairs,17-Jun-21,2122/03,SME,N,
10041087,SUREFIX,850,Building Services,Repairs,14-Jun-21,2122/03,SME,N,
10041034,THE PLAY INSPECTION COMPANY LTD,"2,600.00",Open Spaces,Contracted Services,15-Jun-21,2122/03,SME,Y,50%
10040937,THERMATECH,475,Sheltered Accommodation,Fire Prevention,10-Jun-21,2122/03,SME,N,
10040919,WINDIMAN LTD,593.51,Building Services,Repairs,31-May-21,2122/03,SME,N,
10041056,WINDIMAN LTD,569.7,Building Services,Repairs,17-Jun-21,2122/03,SME,N,
10041057,WINDIMAN LTD,735,Building Services,Repairs,17-Jun-21,2122/03,SME,N,
10041058,WINDIMAN LTD,735,Building Services,Repairs,17-Jun-21,2122/03,SME,N,
10040610,ARCHANT COMMUNITY MEDIA LTD,"1,444.57",Devt Management -Applications,Advertising&mkting (non-staff),22-May-21,2122/03,LGE,N,
10040678,ARCHANT COMMUNITY MEDIA LTD,472.77,Devt Management -Applications,Advertising&mkting (non-staff),31-May-21,2122/03,LGE,N,
10040858,ARCHANT COMMUNITY MEDIA LTD,"1,155.66",Devt Management -Applications,Advertising&mkting (non-staff),05-Jun-21,2122/03,LGE,N,
10041009,ARCHANT COMMUNITY MEDIA LTD,656.62,Devt Management -Applications,Advertising&mkting (non-staff),12-Jun-21,2122/03,LGE,N,
10041112,ARCHANT COMMUNITY MEDIA LTD,"1,100.00",Taxi & Private Hire Licensing,Advertising&mkting (non-staff),19-Jun-21,2122/03,LGE,N,
10041113,ARCHANT COMMUNITY MEDIA LTD,446.51,Devt Management -Applications,Advertising&mkting (non-staff),19-Jun-21,2122/03,LGE,N,
10040555,IDOX SOFTWARE LTD,"5,320.00",ICT - CapsUniform,Prof & Consultancy Fees,25-May-21,2122/03,SME,Y,50%
10040571,NPS PROPERTY CONSULTANTS LTD,"1,993.00",Environmental Imps,Prof & Consultancy Fees,26-May-21,2122/03,LGE,N,
10040572,NPS PROPERTY CONSULTANTS LTD,"1,362.50",Council House Adaptions,Prof & Consultancy Fees,26-May-21,2122/03,LGE,N,
10041092,IPSWICH BOROUGH COUNCIL,"8,356.16",Shared Revenues Partnership,Contributions to other Bodies,15-Jun-21,2122/03,LGE,N,
10041093,IPSWICH BOROUGH COUNCIL,"8,896.55",Shared Revenues Partnership,Contributions to other Bodies,15-Jun-21,2122/03,LGE,N,
10041094,IPSWICH BOROUGH COUNCIL,"27,386.32",Shared Revenues Partnership,Contributions to other Bodies,15-Jun-21,2122/03,LGE,N,
10041095,IPSWICH BOROUGH COUNCIL,"258,350.75",Shared Revenues Partnership,Major Contracts,15-Jun-21,2122/03,LGE,N,
10041097,IPSWICH BOROUGH COUNCIL,327.47,Central Printing,Commercial Printing,14-Jun-21,2122/03,LGE,N,
10041097,IPSWICH BOROUGH COUNCIL,818.09,Communications,Commercial Printing,14-Jun-21,2122/03,LGE,Y,50%
20027369,EDF ENERGY,75.96,Belle Vue House,Electricity,08-Jun-21,2122/03,LGE,N,
20027369,EDF ENERGY,902.26,C Parks General,Electricity,08-Jun-21,2122/03,LGE,N,
20027369,EDF ENERGY,2.71,Calais St Depot,Electricity,08-Jun-21,2122/03,LGE,N,
20027369,EDF ENERGY,424.13,Chilton Depot,Electricity,08-Jun-21,2122/03,LGE,Y,50%
20027369,EDF ENERGY,198.48,Climate Change and Sustainabil,Electricity,08-Jun-21,2122/03,LGE,N,
20027369,EDF ENERGY,87.49,Community Safety-CCTV,Electricity,08-Jun-21,2122/03,LGE,N,
20027369,EDF ENERGY,14.25,Hadl Market,Electricity,08-Jun-21,2122/03,LGE,N,
20027369,EDF ENERGY,10.78,Headquarters General,Electricity,08-Jun-21,2122/03,LGE,N,
20027369,EDF ENERGY,861.45,HQ Energy,Electricity,08-Jun-21,2122/03,LGE,N,
20027369,EDF ENERGY,400.2,Public Conveniences,Electricity,08-Jun-21,2122/03,LGE,N,
20027369,EDF ENERGY,172.32,Sewage Treatment Works,Electricity,08-Jun-21,2122/03,LGE,N,
20027369,EDF ENERGY,"7,616.47",Sheltered Accommodation,Electricity,08-Jun-21,2122/03,LGE,N,
20027369,EDF ENERGY,145.26,SP Comm Alarms (Non-SH),Electricity,08-Jun-21,2122/03,LGE,N,
20027369,EDF ENERGY,256.8,Temporary Accommodation,Electricity,08-Jun-21,2122/03,LGE,N,
20027369,EDF ENERGY,"4,064.99",Tenancy Services,Electricity,08-Jun-21,2122/03,LGE,N,
20027369,EDF ENERGY,1.99,Wenham Depot,Electricity,08-Jun-21,2122/03,LGE,Y,50%
10040946,RURAL COFFEE CARAVAN INFORMATION PROJECT,"4,000.00",Grants & Contrbns,Grants,10-Jun-21,2122/03,SME,N,
10040599,ERNST & YOUNG LLP,"9,397.00",Ext Audit,Audit Fees,07-May-21,2122/03,LGE,N,
20027352,GPC BARCLAYS,"2,278.18",Current Assets,Barclaycard Control,16-May-21,2122/03,LGE,Y,14.50%
20027360,GPC BARCLAYS,"2,766.49",Current Assets,Barclaycard Control,16-Jun-21,2122/03,LGE,Y,16%
10040752,STANNAH STAIRLIFTS LTD,"3,096.81",Stairlifts,Repairs,01-Jun-21,2122/03,LGE,N,
10040770,STANNAH STAIRLIFTS LTD,"1,700.00",Sheltered Accommodation,Repairs,03-Jun-21,2122/03,LGE,N,
20027366,COMPUTERSHARE ,923,Current Assets,ChildCare Vouchers-Control,28-Jun-21,2122/03,LGE,N,
10040878,ASSOCIATION FOR SUFFOLK MUSEUMS,"1,000.00",Grants & Contrbns,Grants,10-Jun-21,2122/03,SME,N,
10041126,COPDOCK & OI CRICKET CLUB LTD,"8,300.00",Comm Devt Grants,Grants,22-Jun-21,2122/03,SME,N,
10041130,EAST ANGLIAN TRADITIONAL MUSIC TRUST,750,Suffolk Community Restart Fund,Contributions from other LAs,22-Jun-21,2122/03,SME,N,
10040939,EASTERN ANGLES THEATRE CO LTD,400,Grants & Contrbns,Grants,10-Jun-21,2122/03,SME,N,
10040924,IPSWICH & DISTRICT CITIZENS ADVICE BUREA,"7,673.00",Grants & Contrbns,Grants,10-Jun-21,2122/03,SME,N,
10040650,LAVENHAM PARISH COUNCIL,"8,303.00",CIL,Grants,28-May-21,2122/03,SME,N,
10041062,LAVENHAM PARISH COUNCIL,"6,367.13",CIL,Grants,17-Jun-21,2122/03,SME,N,
10041128,LAVENHAM PARISH COUNCIL,"18,750.00",CIL,Grants,22-Jun-21,2122/03,SME,N,
10041163,LAVENHAM PARISH COUNCIL,"15,000.00",CIL,Grants,23-Jun-21,2122/03,SME,N,
10041127,LAWSHALL PARISH COUNCIL,714.12,Grants & Contrbns,Grants,22-Jun-21,2122/03,SME,N,
10041295,LAWSHALL PARISH COUNCIL,"6,380.77",Current Liabilities,Developer Contributions,30-Jun-21,2122/03,SME,N,
10040942,LIGHTHOUSE WOMENS AID LTD,"1,250.00",Grants & Contrbns,Grants,10-Jun-21,2122/03,SME,N,
10040956,LONG MELFORD PARISH COUNCIL,"2,500.00",Comm Devt Grants,Grants,10-Jun-21,2122/03,SME,N,
10041241,NEWTON PARISH COUNCIL,"12,001.82",CIL,Grants,28-Jun-21,2122/03,SME,N,
10041294,STUTTON PARISH COUNCIL,"25,000.00",Current Liabilities,Developer Contributions,30-Jun-21,2122/03,SME,N,
10040643,SUDBURY TOWN COUNCIL,"5,000.00",Visitor Economy,Grants,28-May-21,2122/03,SME,N,
10040947,SUFFOLK ACCIDENT RESCUE SERVICE,500,Grants & Contrbns,Grants,10-Jun-21,2122/03,SME,N,
10040955,SUFFOLK ARTLINK,"1,500.00",Grants & Contrbns,Grants,10-Jun-21,2122/03,SME,N,
10040948,THE BRIDGE PROJECT SUDBURY,"7,200.00",Grants & Contrbns,Grants,10-Jun-21,2122/03,SME,N,
10040582,SUFFOLK COUNTY COUNCIL,401.41,ICT,Desktop Software,26-May-21,2122/03,LGE,Y,50%
10040645,SUFFOLK COUNTY COUNCIL,290,General Elections,Misc Supplies & Services Costs,27-May-21,2122/03,LGE,Y,53%
10040646,SUFFOLK COUNTY COUNCIL,"1,126.20",ICT,Computer Equpt Purchases,27-May-21,2122/03,LGE,Y,50%
10040737,SUFFOLK COUNTY COUNCIL,"167,892.50",ICT,Major Contracts,01-Jun-21,2122/03,LGE,Y,50%
10040848,SUFFOLK COUNTY COUNCIL,"25,545.94",Domestic Waste,MRF Disposal,04-Jun-21,2122/03,LGE,N,
10040848,SUFFOLK COUNTY COUNCIL,"13,409.21",Garden Waste,Garden Waste Disposal,04-Jun-21,2122/03,LGE,N,
10040974,SUFFOLK COUNTY COUNCIL,"4,073.57",Jnt Waste Contract,Subscriptions,10-Jun-21,2122/03,LGE,N,
10040991,SUFFOLK COUNTY COUNCIL,"4,594.54",ICT,Photocopying,11-Jun-21,2122/03,LGE,Y,50%
10040630,FENN WRIGHT LLP,450,General/Supervision & Mgmt,Prof & Consultancy Fees,28-May-21,2122/03,SME,N,
10040644,ROYAL MAIL,281.16,Electoral Registration,Postage,03-May-21,2122/03,LGE,Y,14%
10040898,ROYAL MAIL,722.65,General Elections,Postage,28-May-21,2122/03,LGE,N,
10040849,REED SPECIALIST RECRUITMENT LTD,745.14,Governance,Agency Staff,21-May-21,2122/03,LGE,Y,50%
10040850,REED SPECIALIST RECRUITMENT LTD,858.04,Governance,Agency Staff,21-May-21,2122/03,LGE,Y,50%
10040851,REED SPECIALIST RECRUITMENT LTD,835.46,Governance,Agency Staff,21-May-21,2122/03,LGE,Y,50%
10040852,REED SPECIALIST RECRUITMENT LTD,666.11,Governance,Agency Staff,28-May-21,2122/03,LGE,Y,50%
10040853,REED SPECIALIST RECRUITMENT LTD,858.04,Governance,Agency Staff,28-May-21,2122/03,LGE,Y,50%
10040854,REED SPECIALIST RECRUITMENT LTD,797.75,Governance,Agency Staff,28-May-21,2122/03,LGE,Y,50%
10041006,REED SPECIALIST RECRUITMENT LTD,349.99,Governance,Agency Staff,04-Jun-21,2122/03,LGE,Y,50%
10041007,REED SPECIALIST RECRUITMENT LTD,508.05,Governance,Agency Staff,04-Jun-21,2122/03,LGE,Y,50%
10041008,REED SPECIALIST RECRUITMENT LTD,378.22,Governance,Agency Staff,04-Jun-21,2122/03,LGE,Y,50%
10041233,TELEFONICA UK LIMITED - O2,578.14,ICT,Telephone Costs,27-Jun-21,2122/03,LGE,Y,50%
10041160,COPDOCK & WASHBROOK VILLAGE HALL,"1,754.00",Suffolk Community Restart Fund,Contributions from other LAs,22-Jun-21,2122/03,SME,N,
10040890,ZURICH MUNICIPAL,837,Public Realm Review,Miscellaneous Insurance Excess,03-Jun-21,2122/03,LGE,N,
20027368,GAZPROM ENERGY,90.58,Belle Vue House,Gas,24-Jun-21,2122/03,SME,N,
20027368,GAZPROM ENERGY,"1,116.25",Hadleigh Pool,Gas,24-Jun-21,2122/03,SME,N,
20027368,GAZPROM ENERGY,37.18,HQ Energy,Gas,24-Jun-21,2122/03,SME,N,
20027368,GAZPROM ENERGY,"3,494.71",Sheltered Accommodation,Gas,24-Jun-21,2122/03,SME,N,
20027368,GAZPROM ENERGY,408.47,Temporary Accommodation,Gas,24-Jun-21,2122/03,SME,N,
10040921,SUDBURY & DISTRICT CAB,"13,375.00",Grants & Contrbns,Grants,10-Jun-21,2122/03,SME,N,
10040944,EDENS PROJECT,"7,920.00",Grants & Contrbns,Grants,10-Jun-21,2122/03,SME,N,
10040945,KERNOS CENTRE,"4,000.00",Grants & Contrbns,Grants,10-Jun-21,2122/03,SME,N,
10040943,THE QUAY THEATRE AT SUDBURY,"11,500.00",Grants & Contrbns,Grants,10-Jun-21,2122/03,SME,N,
10040530,WHYBROW PROPERTY SOLUTIONS LTD,"10,000.00",Conversions & Adaptations,Improvements,24-May-21,2122/03,SME,N,
10040636,WHYBROW PROPERTY SOLUTIONS LTD,"9,204.98",Conversions & Adaptations,Improvements,26-May-21,2122/03,SME,N,
10040779,WHYBROW PROPERTY SOLUTIONS LTD,972,Kitchens/Bathrooms,Improvements,03-Jun-21,2122/03,SME,N,
10040579,L A C CLEANING CONTRACTORS LIMITED,633.33,Sheltered Accommodation,General Cleaning,24-May-21,2122/03,SME,N,
10040692,L A C CLEANING CONTRACTORS LIMITED,275.5,Building Services,Repairs,01-Jun-21,2122/03,SME,N,
10040693,L A C CLEANING CONTRACTORS LIMITED,895.5,Building Services,Repairs,01-Jun-21,2122/03,SME,N,
10040975,L A C CLEANING CONTRACTORS LIMITED,370,Wenham Depot TDP,General Cleaning,26-Apr-21,2122/03,SME,Y,50%
10040976,L A C CLEANING CONTRACTORS LIMITED,370,Wenham Depot TDP,General Cleaning,24-May-21,2122/03,SME,Y,50%
10040977,L A C CLEANING CONTRACTORS LIMITED,290,Wenham Depot TDP,General Cleaning,26-Apr-21,2122/03,SME,Y,50%
10040978,L A C CLEANING CONTRACTORS LIMITED,290,Wenham Depot TDP,General Cleaning,24-May-21,2122/03,SME,Y,50%
10040683,TRADITION (UK) LTD,347.94,Treasury Management,Prof & Consultancy Fees,31-May-21,2122/03,LGE,N,
10040954,COMMUNITY ACTION SUFFOLK,"10,000.00",Grants & Contrbns,Grants,10-Jun-21,2122/03,SME,N,
10040835,WEST SUFFOLK COLLEGE,"25,000.00",Economy & Business,Misc Supplies & Services Costs,07-May-21,2122/03,LGE,N,
10040778,CAPITA SECURE INFORMATION SOLUTIONS LTD,"1,039.35",ICT,Software Licnse (Line of Bus) ,25-May-21,2122/03,SME,Y,50%
10040843,ORSIS UK LTD,"6,412.50",PV Panels,Contracted Services,07-Jun-21,2122/03,SME,N,
10040652,OPUS PEOPLE SOLUTIONS LTD,"1,786.42",Current Liabilities,Agency Staff Holding A/C,27-May-21,2122/03,SME,N,
10040872,OPUS PEOPLE SOLUTIONS LTD,"1,281.89",Current Liabilities,Agency Staff Holding A/C,03-Jun-21,2122/03,SME,N,
10040971,OPUS PEOPLE SOLUTIONS LTD,"1,037.75",Current Liabilities,Agency Staff Holding A/C,10-Jun-21,2122/03,SME,N,
10041075,OPUS PEOPLE SOLUTIONS LTD,"1,920.43",Current Liabilities,Agency Staff Holding A/C,17-Jun-21,2122/03,SME,N,
10040656,CORNERSTONE BARRISTERS,747.5,Environmental Protection,Prof & Consultancy Fees,30-Apr-21,2122/03,SME,N,
10040903,CORNERSTONE BARRISTERS,"1,400.00",Devt Management -Applications,Legal Expenses,23-Apr-21,2122/03,SME,N,
10040922,CORNERSTONE BARRISTERS,"2,310.00",Devt Management -Applications,Legal Expenses,27-May-21,2122/03,SME,N,
10040925,CORNERSTONE BARRISTERS,"3,600.00",Devt Management -Applications,Legal Expenses,14-Apr-21,2122/03,SME,N,
10041099,THE OLDE BULL HOTEL,470,Homelessness Private Sector,B&B Costs,14-Jun-21,2122/03,SME,N,
10040681,ELYSIAN ASSOCIATES,500,Financial Servs,Prof & Consultancy Fees,01-Jun-21,2122/03,SME,N,
10041120,LLG ENTERPRISES LTD T/AS LLG LEGAL TRAIN,648,Governance,Training,17-Jun-21,2122/03,SME,Y,50%
10040726,VERTAS GROUP LTD,"10,488.35",Central Postal Serv,Postage,31-May-21,2122/03,SME,Y,50%
10040511,COLLINS SKIP HIRE,780,Building Services,Waste Disposal,24-May-21,2122/03,SME,Y,50%
10040662,COLLINS SKIP HIRE,520,Building Services,Waste Disposal,29-May-21,2122/03,SME,Y,50%
10040663,COLLINS SKIP HIRE,310,Building Services,Repairs,29-May-21,2122/03,SME,N,
10040996,COLLINS SKIP HIRE,812.49,Building Services,Waste Disposal,14-Jun-21,2122/03,SME,Y,50%
10041107,4PRINCIPLES CONSTRUCTION LTD,"7,404.37",Mand Disabled Facilities Grant,Grants,21-Jun-21,2122/03,SME,N,
10041161,MATT ALLMAN LTD T/A MOVEITCLEARITFINDIT,"1,143.33",Homelessness Private Sector,Removal Expenses,23-Jun-21,2122/03,SME,N,
10040780,THE SPORT LEISURE & CULTURE CONSULTANCY ,"6,032.15",Refresh Sports Strategy,Prof & Consultancy Fees,31-May-21,2122/03,SME,Y,50%
10040832,HEALTH  ASSURED LTD,475,Homeless Prevention Fund,Contracted Services,02-Jun-21,2122/03,LGE,N,
10040680,MORTIMER CONTRACTS LIMITED,900,Amenity Areas,Grounds & Site Maintenance,01-Jun-21,2122/03,SME,N,
10040671,FAST FORWARD FIRE FLOOD,"2,873.00",Building Services,Repairs,25-May-21,2122/03,SME,N,
10040657,"DUNCAN, CAMERON AND HUTCHINSON LTD","95,000.00","11-12 Ipswich, Brantham",Major Contracts,28-May-21,2122/03,SME,N,
10040658,"DUNCAN, CAMERON AND HUTCHINSON LTD","79,800.00","1-3 Queensland, Shotley",Major Contracts,28-May-21,2122/03,SME,N,
10040727,SUFFOLK MARKET EVENTS,500,Hadl Market,Contracted Services,02-Jun-21,2122/03,SME,N,
10040885,SAVILLS,500,Assets & Development,Prof & Consultancy Fees,07-Jun-21,2122/03,SME,N,
10040874,LEISTON PRESS LIMITED,"2,943.00",Hadleigh Pool Refurb,Improvements,28-May-21,2122/03,SME,N,
10040893,ADVANCE SUPPLIES,275.88,Sheltered Accommodation,Cleaning Materials,04-May-21,2122/03,SME,N,
10041090,ADVANCE SUPPLIES,536.56,Sheltered Accommodation,Cleaning Materials,18-Jun-21,2122/03,SME,N,
10040600,HAYS SPECIALIST RECRUITMENT LTD,819.4,Business Cont/Emergency Plan,Agency Staff,27-May-21,2122/03,LGE,Y,50%
10040601,HAYS SPECIALIST RECRUITMENT LTD,819.4,Business Cont/Emergency Plan,Agency Staff,27-May-21,2122/03,LGE,Y,50%
10040602,HAYS SPECIALIST RECRUITMENT LTD,"1,030.15",Business Cont/Emergency Plan,Agency Staff,27-May-21,2122/03,LGE,Y,50%
10040603,HAYS SPECIALIST RECRUITMENT LTD,"1,030.14",Business Cont/Emergency Plan,Agency Staff,27-May-21,2122/03,LGE,Y,50%
10040748,HAYS SPECIALIST RECRUITMENT LTD,819.4,Business Cont/Emergency Plan,Agency Staff,03-Jun-21,2122/03,LGE,Y,50%
10040749,HAYS SPECIALIST RECRUITMENT LTD,819.4,Business Cont/Emergency Plan,Agency Staff,03-Jun-21,2122/03,LGE,Y,50%
10040750,HAYS SPECIALIST RECRUITMENT LTD,"1,030.14",Business Cont/Emergency Plan,Agency Staff,03-Jun-21,2122/03,LGE,Y,50%
10040751,HAYS SPECIALIST RECRUITMENT LTD,"1,030.15",Business Cont/Emergency Plan,Agency Staff,03-Jun-21,2122/03,LGE,Y,50%
10040932,HAYS SPECIALIST RECRUITMENT LTD,755.43,Business Cont/Emergency Plan,Agency Staff,09-Jun-21,2122/03,LGE,Y,50%
10040933,HAYS SPECIALIST RECRUITMENT LTD,824.12,Business Cont/Emergency Plan,Agency Staff,09-Jun-21,2122/03,LGE,Y,50%
10040934,HAYS SPECIALIST RECRUITMENT LTD,655.52,Business Cont/Emergency Plan,Agency Staff,09-Jun-21,2122/03,LGE,Y,50%
10040935,HAYS SPECIALIST RECRUITMENT LTD,655.52,Business Cont/Emergency Plan,Agency Staff,09-Jun-21,2122/03,LGE,Y,50%
10041044,HAYS SPECIALIST RECRUITMENT LTD,655.52,Business Cont/Emergency Plan,Agency Staff,16-Jun-21,2122/03,LGE,Y,50%
10041045,HAYS SPECIALIST RECRUITMENT LTD,819.4,Business Cont/Emergency Plan,Agency Staff,16-Jun-21,2122/03,LGE,Y,50%
10041046,HAYS SPECIALIST RECRUITMENT LTD,"1,030.14",Business Cont/Emergency Plan,Agency Staff,16-Jun-21,2122/03,LGE,Y,50%
10041047,HAYS SPECIALIST RECRUITMENT LTD,"1,030.15",Business Cont/Emergency Plan,Agency Staff,16-Jun-21,2122/03,LGE,Y,50%
10041180,HAYS SPECIALIST RECRUITMENT LTD,819.4,Business Cont/Emergency Plan,Agency Staff,24-Jun-21,2122/03,LGE,Y,50%
10041181,HAYS SPECIALIST RECRUITMENT LTD,"1,016.39",Business Cont/Emergency Plan,Agency Staff,24-Jun-21,2122/03,LGE,Y,50%
10040729,RICHARD UTTING ASSOCIATES LLP,"1,003.73",New Bld/acquisition,Purchase of Land & Buildings,31-May-21,2122/03,SME,N,
10040729,RICHARD UTTING ASSOCIATES LLP,721.27,"Wolsey Grange, Sproughton S106",Prof & Consultancy Fees,31-May-21,2122/03,SME,N,
10040840,LITTLE WALDINGFIELD PLAYING FIELD CTTEE,"3,040.84",Comm Devt Grants,Grants,06-Jun-21,2122/03,SME,N,
10040629,PRIVATE LANDLORD,650,Guaranteed Rent Scheme,Rent Payable,28-May-21,2122/03,SME,N,
10041167,CHARISMA SPATIAL PLANNING LTD T/A ANN SK,"3,040.85",Nghbrhd Plan Designations,Prof & Consultancy Fees,23-Jun-21,2122/03,SME,N,
10041063,BATEMAN BUILDING SERVICES,"5,650.00",Renovation/Home Repair Grants,Grants,17-Jun-21,2122/03,SME,N,
10041100,THE OLDE BULL YARD,420,Homelessness Private Sector,B&B Costs,14-Jun-21,2122/03,SME,N,
10040756,THE STOWMARKET GLASS COMPANY LTD,376.73,Building Services,Repairs,25-May-21,2122/03,SME,N,
10040633,SUPERSTRUCTURES LTD,750,Structural Works,Prof & Consultancy Fees,28-May-21,2122/03,SME,N,
20027355,RIX PETROLEUM (EAST ANGLIA) LTD,414.81,Tenancy Services,Heating Oil,07-Jun-21,2122/03,SME,N,
20027355,RIX PETROLEUM (EAST ANGLIA) LTD,690.19,Sheltered Accommodation,Heating Oil,07-Jun-21,2122/03,SME,N,
20027355,RIX PETROLEUM (EAST ANGLIA) LTD,565.65,Tenancy Services,Heating Oil,07-Jun-21,2122/03,SME,N,
10040574,NORTHUMBRIAN WATER LTD,63.05,Chilton Depot,Legionella Testing,26-May-21,2122/03,LGE,Y,50%
10040574,NORTHUMBRIAN WATER LTD,34.15,HQ Energy,Legionella Testing,26-May-21,2122/03,LGE,N,
10040574,NORTHUMBRIAN WATER LTD,34.15,Lavenham TIC,Legionella Testing,26-May-21,2122/03,LGE,N,
10040574,NORTHUMBRIAN WATER LTD,202.31,Public Conveniences,Legionella Testing,26-May-21,2122/03,LGE,N,
10040574,NORTHUMBRIAN WATER LTD,28.9,Responsive maintenance,Legionella Testing,26-May-21,2122/03,LGE,N,
10040574,NORTHUMBRIAN WATER LTD,295.28,Sheltered Accommodation,Legionella Testing,26-May-21,2122/03,LGE,N,
10040574,NORTHUMBRIAN WATER LTD,91.95,Temporary Accommodation,Legionella Testing,26-May-21,2122/03,LGE,N,
10040574,NORTHUMBRIAN WATER LTD,28.9,Wenham Depot,Legionella Testing,26-May-21,2122/03,LGE,Y,50%
10040510,ENGIE REGENERATION LTD,"96,392.00",Major Imps,Major Contracts,20-May-21,2122/03,LGE,N,
10040554,ENGIE REGENERATION LTD,"144,308.00",Major Imps,Major Contracts,21-May-21,2122/03,LGE,N,
10040836,SKYGUARD LTD T/A PEOPLESAFE,310,Health & Safety,"Equipment, Tools & Materials",04-Jun-21,2122/03,SME,Y,50%
10040906,RESIDENTIALLY CHARTERED SURVEYORS,500,"Churchfield, Monks Eleigh S106",Prof & Consultancy Fees,19-May-21,2122/03,SME,N,
10040755,TOP FLOORS (EAST ANGLIA) LTD,456.49,Building Services,Repairs,26-May-21,2122/03,SME,N,
10040969,TOP FLOORS (EAST ANGLIA) LTD,472.91,Building Services,Repairs,09-Jun-21,2122/03,SME,N,
10040638,CRB ASSOCIATES,"4,830.00",SCMP & Training - Recharge Wks,Misc Income,28-May-21,2122/03,SME,Y,50%
10041066,SUDBURYS,440,Guaranteed Rent Scheme,Rent Payable,18-Jun-21,2122/03,SME,N,
10040941,HOME-START IN SUFFOLK,"9,000.00",Grants & Contrbns,Grants,10-Jun-21,2122/03,SME,N,
10041162,NHS ENGLAND (ESTATES),"18,043.45",Current Liabilities,Developer Contributions,23-Jun-21,2122/03,LGE,N,
10040705,ICENI,845.98,"1-3 Queensland, Shotley",Prof & Consultancy Fees,01-Jun-21,2122/03,SME,N,
10040705,ICENI,422.99,"16 Queensland, Shotley",Prof & Consultancy Fees,01-Jun-21,2122/03,SME,N,
10040706,ICENI,"1,097.53","11-12 Ipswich, Brantham",Prof & Consultancy Fees,01-Jun-21,2122/03,SME,N,
10040707,ICENI,"4,779.78","Bantocks Rd, Gt Walding S106",Prof & Consultancy Fees,01-Jun-21,2122/03,SME,N,
10040708,ICENI,"4,288.15",Waldingfield Rd S106 Andersons,Prof & Consultancy Fees,01-Jun-21,2122/03,SME,N,
10040709,ICENI,"4,375.39",Bourne Hill Wherstead S106 acq,Prof & Consultancy Fees,01-Jun-21,2122/03,SME,N,
10040696,WILLIAM H BROWN ESTATE AGENTS - SUDBURY,650,Rent Deposit Scheme,Misc Premises Costs,02-Jun-21,2122/03,SME,N,
20027362,WILLIAM H BROWN ESTATE AGENTS - SUDBURY,725,Guaranteed Rent Scheme,Rent Payable,17-Jun-21,2122/03,SME,N,
20027362,WILLIAM H BROWN ESTATE AGENTS - SUDBURY,750,Guaranteed Rent Scheme,Misc Supplies & Services Costs,17-Jun-21,2122/03,SME,N,
10041110,3 POINT PROPERTY MANAGEMENT LTD,550,Guaranteed Rent Scheme,Rent Payable,22-Jun-21,2122/03,SME,N,
10040647,APTL ENTERPRISES LTD,"4,648.00",PV Panels,Contracted Services,31-May-21,2122/03,SME,Y,44%
10040648,APTL ENTERPRISES LTD,"3,652.00",PV Panels,Contracted Services,31-May-21,2122/03,SME,Y,44%
10040649,SOUND 4 PRO AUDIO,"2,041.60",Devt Policy & Local Plans,Advertising&mkting (non-staff),14-May-21,2122/03,SME,Y,50%
10040654,SOUND 4 PRO AUDIO,"2,856.00",Devt Policy & Local Plans,Advertising&mkting (non-staff),27-May-21,2122/03,SME,Y,50%
10040703,SOUND 4 PRO AUDIO,"8,166.40",Devt Policy & Local Plans,Advertising&mkting (non-staff),01-Jun-21,2122/03,SME,Y,50%
10040704,SOUND 4 PRO AUDIO,"11,424.00",Devt Policy & Local Plans,Advertising&mkting (non-staff),01-Jun-21,2122/03,SME,Y,50%
10040741,SOUND 4 PRO AUDIO,"4,261.00",Devt Policy & Local Plans,Advertising&mkting (non-staff),02-Jun-21,2122/03,SME,Y,50%
10041133,WLP PROPERTY RESIDENTIAL MANAGEMENT LTD,525,Guaranteed Rent Scheme,Rent Payable,23-Jun-21,2122/03,SME,N,
10040880,PRIVATE LANDLORD,550,Guaranteed Rent Scheme,Rent Payable,09-Jun-21,2122/03,SME,N,
10040907,LAND USE CONSULTANTS LTD,"2,124.00",Devt Policy & Local Plans,Prof & Consultancy Fees,30-May-21,2122/03,SME,Y,50%
10040842,PINSENT MASONS LLP,"4,727.00",Belle Vue Refurb/Rplcmt,Prof & Consultancy Fees,31-May-21,2122/03,LGE,N,
10041134,REEFER PROPERTIES LTD,695,Guaranteed Rent Scheme,Rent Payable,23-Jun-21,2122/03,SME,N,
10040553,THE WINDOW COMPANY (CONTRACTS) LTD,"9,874.00",Sheltered Units-Gen.Imp,Major Contracts,25-Apr-21,2122/03,SME,N,
10040929,ELLISONS SOLICITORS,"5,230.33","Melford Rd, Lavenham S106",Prof & Consultancy Fees,23-Dec-20,2122/03,SME,N,
10040930,ELLISONS SOLICITORS,"15,189.34",Waldingfield Rd S106 Andersons,Prof & Consultancy Fees,23-Dec-20,2122/03,SME,N,
10040931,ELLISONS SOLICITORS,"10,000.00",Bourne Hill Wherstead S106 acq,Prof & Consultancy Fees,23-Dec-20,2122/03,SME,N,
10040876,PRIVATE LANDLORD,490,Guaranteed Rent Scheme,Misc Premises Costs,10-Jun-21,2122/03,SME,N,
10041028,PRIVATE LANDLORD,650,Guaranteed Rent Scheme,Rent Payable,16-Jun-21,2122/03,ST,N,
10041111,PRIVATE LANDLORD,650,Guaranteed Rent Scheme,Rent Payable,22-Jun-21,2122/03,SME,N,
10040711,PAUL STEPHENSON ASSOCIATES,520,"Angel Court, Hadleigh",Contracted Services,31-May-21,2122/03,SME,N,
10040604,NOVUS PROPERTY SOLUTIONS LTD,"20,560.00",Planned Maint - Ext Painting,External Painting,27-May-21,2122/03,LGE,N,
10041065,PRIVATE LANDLORD,"1,198.00",Guaranteed Rent Scheme,Rent Payable,18-Jun-21,2122/03,ST,N,
10040994,SEQUENCE UK LTD (WILLIAM H BROWN),700,Guaranteed Rent Scheme,Rent Payable,14-Jun-21,2122/03,LGE,N,
10041131,SEQUENCE UK LTD (WILLIAM H BROWN),700,Guaranteed Rent Scheme,Rent Payable,23-Jun-21,2122/03,LGE,N,
10041029,PRIVATE LANDLORD,550,Guaranteed Rent Scheme,Rent Payable,16-Jun-21,2122/03,ST,N,
10040993,PRIVATE LANDLORD,700,Rent Deposit Scheme,Misc Premises Costs,14-Jun-21,2122/03,ST,N,
10041132,PRIVATE LANDLORD,700,Rent Deposit Scheme,Misc Premises Costs,23-Jun-21,2122/03,ST,N,
10040697,PRIVATE LANDLORD,490,Rent Deposit Scheme,Misc Premises Costs,02-Jun-21,2122/03,SME,N,
10040913,ETF LIMITED,"2,790.00",Business Cont/Emergency Plan,General Cleaning,31-May-21,2122/03,SME,N,
10040902,AMPLIS CONSTRUCTION LTD,"22,119.17","Fences, Gates and Walls",Major Contracts,08-Jun-21,2122/03,SME,N,
10040781,PRIVATE LANDLORD,786.5,Guaranteed Rent Scheme,Rent Payable,04-Jun-21,2122/03,ST,N,
10040926,SCHOON ENERGY LTD T/A RENENERGY,560,SolarPVCarport&VehChargePts,Prof & Consultancy Fees,09-Jun-21,2122/03,SME,Y,50%
10040877,PRIVATE LANDLORD,650,Guaranteed Rent Scheme,Rent Payable,10-Jun-21,2122/03,ST,N,
10040659,STRENGTHSCOPE LIMITED,680,Organisational Devt,Training,01-Feb-21,2122/03,SME,Y,50%
10040659,STRENGTHSCOPE LIMITED,"1,050.00",Devt Management -Applications,Training,01-Feb-21,2122/03,SME,Y,50%
10040660,STRENGTHSCOPE LIMITED,"1,147.50",Organisational Devt,Training,10-Mar-21,2122/03,SME,Y,50%
10040958,COUNTRYSTYLE RECYCLING LTD,"1,727.81",Bring Sites,Contracted Services,31-May-21,2122/03,SME,N,
10040665,DGL QUALITY MANAGEMENT LTD,560,"1-3 Queensland, Shotley",Prof & Consultancy Fees,31-May-21,2122/03,SME,N,
10040666,DGL QUALITY MANAGEMENT LTD,560,"11-12 Ipswich, Brantham",Prof & Consultancy Fees,31-May-21,2122/03,SME,N,
10040691,ENVIROSIGNS LTD,"2,194.00",Hadleigh Pool Refurb,Improvements,01-Jun-21,2122/03,SME,N,
10040881,PRIVATE LANDLORD,650,Guaranteed Rent Scheme,Rent Payable,08-Jun-21,2122/03,ST,N,
10040998,R HARBORNE PLUMBING SERVICES,"5,120.00",Mand Disabled Facilities Grant,Grants,14-Jun-21,2122/03,SME,N,
10040447,BEAUMONT COMMUNITY PRIMARY SCHOOL,400,Grants & Contrbns,Contributions & Donations,13-May-21,2122/03,SME,N,
10040882,PRIVATE LANDLORD,800,Guaranteed Rent Scheme,Rent Payable,08-Jun-21,2122/03,SME,N,
10040464,ARAN INSULATION LTD,"3,630.00",Building Services,Contracted Services,19-May-21,2122/03,SME,N,
10040742,ARAN INSULATION LTD,"2,255.00",Building Services,Contracted Services,31-May-21,2122/03,SME,N,
10040847,ARAN INSULATION LTD,"3,465.00",Building Services,Contracted Services,07-Jun-21,2122/03,SME,N,
10041023,ARAN INSULATION LTD,"1,155.00",Building Services,Contracted Services,15-Jun-21,2122/03,SME,N,
10041072,THE SPACEMAN,451.2,Tenancy Services,Contracted Services,18-Jun-21,2122/03,ST,N,
10041016,HM REVENUES & CUSTOMS (CIS TAX),"1,104.68",Current Liabilities,Bank Payments,15-Jun-21,2122/03,LGE,N,
10041067,PRIVATE LANDLORD,550,Guaranteed Rent Scheme,Rent Payable,18-Jun-21,2122/03,ST,N,
10040597,D A HAMILTON GAS ENGINEER & PLUMBERS,"6,000.00",Mand Disabled Facilities Grant,Grants,27-May-21,2122/03,SME,N,
10041129,THE STONE FOUNDATION,800,Suffolk Community Restart Fund,Contributions from other LAs,22-Jun-21,2122/03,SME,N,
10041041,MONTHIND CLEAN LTD,-63,Jnt Waste Contract,General Cleaning,31-May-21,2122/03,LGE,Y,50%
DDT0000976,PLUSNET PLC,12,Current Assets,LLOYDS GENERAL PAYMENTS,01-Jun-21,2122/03,LGE,N,
DDT0101891,PLUSNET PLC,20.34,Current Assets,LLOYDS GENERAL PAYMENTS,23-Jun-21,2122/03,LGE,N,
924,LOCAL GOVERNMENT ASSOCIATION,-200,Management Team,Conference Expenses,10-Jun-21,2122/03,LGE,Y,50%
924,LOCAL GOVERNMENT ASSOCIATION,-400,Cost of Democracy,Conference Expenses,10-Jun-21,2122/03,LGE,N,
10041064,ARMSTRONG YORK ASBESTOS ENVIRONMENTAL,-92.34,Asbestos Survey & Reinspection,Prof & Consultancy Fees,16-Jun-21,2122/03,SME,N,
DDT0000982,CABOODLE TECHNOLGY LIMITED,152.4,Current Assets,LLOYDS GENERAL PAYMENTS,21-Jun-21,2122/03,SME,N,
214,PORTAL PLAN QUEST LTD,-116,Devt Management -Applications,Planning Fees,30-Jun-21,2122/03,SME,N,
